{"text_format":"3","workbook":"xlsx","n_sheets":13,"sheets":["i - Purpose","1-Contents","2-SampleCoverLetter","3-Preparer & Contact Info","4-BUDGET SUMMARY","5-Purpose of Agreement","6-Administration & Management","7-Training","8-Equipment","9-Storage & Maintenance","10-Budget Totals","11-Position Descrips","12-Budget Clarification"],"not_rendered":{"macros":1,"external_links":1,"defined_names":18},"read":"whole","date_system":"1900"}

{"sheet":"i - Purpose","index":0,"n_rows":86,"n_cols":12,"rows_kept":86,"merged":[[0,0,0,10],[0,11,3,15],[1,0,1,10],[2,0,2,10],[3,0,3,10],[4,0,4,15],[5,0,5,15],[6,0,6,15],[7,0,7,15],[8,0,30,15],[85,0,85,15]]}
["Department of Homeland Security",{"$nulls":10},"OMB 1660-0073 \nExpires XX XX, 20XX"]
["Federal Emergency Management Agency "]
["URBAN SEARCH AND RESCUE RESPONSE SYSTEM"]
["Task Force Narrative Workbook"]
["PAPERWORK BURDEN DISCLOSURE NOTICE\nFEMA Form FF-104-FY-21-174 (formerly 089-0-10)"]
["Public reporting burden for this data collection is estimated to average 4 hours per response. The burden estimate includes the time for reviewing instructions, searching existing data sources, gathering and maintaining the data needed, and completing and submitting this form. This collection of information is required to obtain or retain benefits. You are not required to respond to this collection of information unless a valid OMB control number is displayed on this form. Send comments regarding the accuracy of the burden estimate and any suggestions for reducing the burden to: Information Collections Management, Department of Homeland Security, Federal Emergency Management Agency, 500 C Street, SW., Washington, DC 20472-3100, Paperwork Reduction Project (1660-0073) NOTE: Do not send your completed form to this address."]
["Purpose"]
[]
["The U.S. Department of Homeland Security (DHS) and the Federal Emergency Management Agency (FEMA) are accountable to provide support and funding for the maintenance and readiness of the National Urban Search and Rescue (US&R) Response System.  The purpose of the Readiness Cooperative Agreement is to support the continued development and maintenance of a national urban search and rescue capability. \n\nSpecifically, the agreement provides a mechanism for distribution of Cooperative Agreement funding for certain purposes in preparation for US&R disaster response.  The Cooperative Agreement allows each Sponsoring Agency of a US&R task force the opportunity to maintain a high standard and condition of operational readiness and includes guidance on key areas for task force management to focus on continued preparedness efforts.\n\nThe Cooperative Agreement provides direction to the US&R task force Sponsoring Agency for the use of funding to provide:  administrative and program management, training, support, equipment cache procurement, maintenance and storage.  This workbook is designed for use by the Sponsoring Agencies of all current task forces within the US&R Response System when applying for the US&R Readiness Cooperative Agreement solicitation.\n\nFor more specific information and instructions for submission, refer to the applicable Notice of Funding Opportunity (NOFO) package and Statement of Work."]
{"$rows_empty":76}
["i"]

{"sheet":"1-Contents","index":1,"n_rows":69,"n_cols":14,"rows_kept":69,"merged":[[0,0,0,15],[1,0,1,15],[2,0,2,15],[7,2,7,12],[9,2,9,12],[11,2,11,12],[13,2,13,12],[15,2,15,12],[17,2,17,12],[19,2,19,12],[21,2,21,12],[23,2,23,12],[25,2,25,12],[27,2,27,12],[29,2,29,12],[31,2,31,12],[68,0,68,15]]}
["Urban Search & Rescue (US&R) Readiness Cooperative Agreement"]
["Task Force Narrative Workbook"]
["CONTENTS"]
[]
[]
[]
[]
[null,null,"Purpose…………………………………………………………………………….",{"$nulls":10},"i"]
[]
[null,null,"Contents……………………………………………………………………………",{"$nulls":10},1]
[]
[null,null,"Sample Cover Letter……………………………………………………………….",{"$nulls":10},2]
[]
[null,null,"Preparer & Contact Information (FEMA Form 089-0-10A)………………………",{"$nulls":10},3]
[]
[null,null,"Budget Summary (Detailed) (FEMA Form 089-0-10B)……………..……………..",{"$nulls":10},4]
[]
[null,null,"Sample of \"Purpose of Cooperative Agreement\" from Task Force……...….………",{"$nulls":10},5]
[]
[null,null,"Administration and Management (FEMA Form 089-0-10C)………………………",{"$nulls":10},6]
[]
[null,null,"Training (FEMA Form 089-0-10D)………..………………………………………",{"$nulls":10},7]
[]
[null,null,"Equipment (FEMA Form 089-0-10E)……………………………………………..",{"$nulls":10},8]
[]
[null,null,"Storage & Maintenance (FEMA Form 089-0-10F)………………………………..",{"$nulls":10},9]
[]
[null,null,"Budget Totals (FEMA Form 089-0-10G).…….….……………………………….",{"$nulls":10},10]
[]
[null,null,"Position Descriptions (FEMA Form 089-0-10H)………………………………….",{"$nulls":10},11]
[]
[null,null,"Form for Additional Budget Clarification Information (FEMA Form 089-0-10I)…",{"$nulls":10},12]
{"$rows_empty":36}
[1]

{"sheet":"2-SampleCoverLetter","index":2,"n_rows":45,"n_cols":2,"rows_kept":45,"merged":[[0,0,1,8],[8,0,8,4],[13,0,15,8],[22,0,23,8],[32,0,34,8]]}
["SAMPLE COVER LETTER FOR COPERATIVE AGREEMENT APPLICATION"]
[]
["Date: "]
[]
["US Department of Homeland Security"]
["Federal Emergency Management Agency"]
["Grants Management Branch"]
["     Attn:  Ms.  Tawana Mack"]
["800 K Street NW - Rm: S430-5"]
["Washington, DC  20472"]
[]
["Dear Ms. Mack:"]
[]
["Enclosed is the US&R application of Your Sponsoring Agency Name for the year XXXX Department of Homeland Security/FEMA, Urban Search & Rescue Cooperative Agreement for a total of $X,XXX,XXX."]
[]
[]
[]
["The following items have been completed electronically within ND Grants:"]
[null,"1.  Application for Federal Assistance, SF 424 "]
[null,"2.  Budget Information-Non Construction Programs FEMA form SF 424A"]
[null,"3.  Summary sheet for Assurances and Certifications, SF 424 B"]
[null,"4.  SF GG/SF LLL - Lobbying Activities"]
["The following are included in the Narrative Statement (FEMA Wkbk 089-0-10) and attached with the Application:"]
[]
[null,"5.  Preparer & Contact Information Sheet"]
[null,"6.  Budget Narrative (Budget Summary Sheet, four cost categories and Budget Totals)"]
[null,"7.  Position Descriptions for all Staff paid by the Cooperative Agreement"]
["The following are submitted as additional attachments:"]
[null,"8.  Indirect Cost Rate Agreement"]
[null,"9. Specifications for all rolling transportation"]
[null,"10. Pre-Award Cost Request and Approval"]
[]
["Please call “Your Point of Contact” at (XXX) XXX-XXX or email at johndoe@wa.us or “Alternate Point of Contact” (XXX) XXX-XXXX or email at janedoe@wa.us for any other information that you may need."]
[]
[]
[]
[]
["Sincerely,"]
[]
[]
["Your Agency Head"]
["Title"]
["Agency"]
[]
["(update/modify highlighted sections check all applicable boxes)"]

{"sheet":"3-Preparer & Contact Info","index":3,"n_rows":80,"n_cols":1,"rows_kept":80,"merged":[[0,0,1,2],[2,0,3,2],[6,0,6,1],[25,0,26,2],[29,0,29,1],[47,0,48,2],[51,0,51,1]]}
["PREPARER INFORMATION"]
[]
["FEMA Form 089-0-10A"]
[]
[]
[]
["Preparer"]
["Prefix"]
["First Name"]
["Middle Name"]
["Last Name"]
["Title"]
["Agency/Organization"]
["Address 1"]
["Address 2"]
["City"]
["State"]
["Zip"]
["Phone"]
["Fax"]
["E-mail"]
[]
[]
[]
[]
["CONTACT INFORMATION"]
[]
[]
[]
["Point of Contact"]
[]
["Prefix"]
["First Name"]
["Middle Name"]
["Last Name"]
["Title"]
["Agency/Organization"]
["Address 1"]
["Address 2"]
["City"]
["State"]
["Zip"]
["Phone"]
["Fax"]
["E-mail"]
[]
[]
["APPLICANT INFORMATION"]
[]
[]
[]
["Applicant"]
["Task Force "]
["Organization Name"]
["Employer Identification Number"]
["DUNS Number"]
["Address 1"]
["Address 2"]
["City"]
["County"]
["State"]
["Zip"]
["Country"]
["Submission Date"]
["Type of Applicant"]
["Congressional District Applicant"]
["Congressional District Project"]
["Authorized Representative First Name"]
["Authorized Representative Middle Name"]
["Authorized Representative Last Name"]
["Authorized Representative Title"]
["Authorized Representative Phone Number"]
["Applicant Identifier (if applicable)"]
["State Applicant Identifier (if applicable)"]
["Organizational Unit:"]
["Department:"]
["Division:"]
["Made available for EO 12372 (Answer Y or N )"]
["Date Reviewed If applicable)"]
["\"Y\" for not covered  \"N\" for not selected"]

{"sheet":"4-BUDGET SUMMARY","index":4,"n_rows":51,"n_cols":7,"rows_kept":51,"merged":[[0,0,0,6],[1,0,1,6],[2,0,2,6],[3,0,4,0],[3,1,4,1],[3,2,3,3],[3,4,3,6],[10,0,10,6],[11,0,12,1],[11,2,11,5],[11,6,12,6],[13,0,13,1],[14,0,14,1],[15,0,15,1],[16,0,16,1],[17,0,17,1],[18,0,18,1],[19,0,19,1],[20,0,20,1],[21,0,21,1],[22,0,22,1],[23,0,23,1],[24,0,24,6],[25,0,25,1],[26,2,26,4],[26,5,26,6],[27,5,27,6],[28,0,28,6],[29,0,29,2],[30,0,30,2],[31,0,31,2],[32,0,32,2],[33,0,33,2],[34,0,34,2],[35,0,35,6],[36,0,37,1],[38,0,38,1],[39,0,39,1],[40,0,40,6],[41,0,42,2],[41,3,41,6],[43,0,43,2],[44,0,44,2],[45,0,45,2],[46,0,46,2],[47,0,47,2],[48,0,48,6],[49,0,49,2],[49,3,49,6],[50,0,50,6],[51,2,51,4],[52,5,52,6]]}
["COOPERATIVE AGREEMENT BUDGET SUMMARY\n"]
["FEMA Form 089-0-10B"]
["BUDGET SUMMARY        "]
["Grant Program \nFunction \nor Activity \n(a)","Catalog of Federal Domestic Assistance Number \n(b)","Estimated Unobligated Funds",null,"New or Revised Budget"]
[null,null,"Federal \n(c)","Non-Federal\n(d)","Federal \n(e)","Non-Federal \n(f)","Total \n(g)"]
["1.  US&R Readiness Cooperative Agreement",97.025,{"v":0,"d":"0.00"},{"v":0,"d":"0.00"},{"$f":"SUM(G24)","v":{"v":0,"d":"0.00"}},"$",{"$f":"SUM(C6:F6)","v":{"v":0,"d":"0.00"}}]
["2.",{"$nulls":5},{"$f":"SUM(C7:F7)","v":{"v":0,"d":"0.00"}}]
["3.",{"$nulls":5},{"$f":"SUM(C8:F8)","v":{"v":0,"d":"0.00"}}]
["4.",{"$nulls":5},{"$f":"SUM(C9:F9)","v":{"v":0,"d":"0.00"}}]
["5. Totals",null,{"$f":"SUM(C6:C9)","v":{"v":0,"d":"$0.00"}},{"$f":"SUM(D6:D9)","v":{"v":0,"d":"$0.00"}},{"$f":"SUM(E6:E9)","v":{"v":0,"d":"$0.00"}},{"$f":"SUM(F6:F9)","v":{"v":0,"d":"$0.00"}},{"$f":"SUM(G6:G9)","v":{"v":0,"d":"$0.00"}}]
["BUDGET CATEGORIES"]
["6. Object Class Categories",null,"GRANT PROGRAM, FUNCTION OR ACTIVITY",{"$nulls":3},"Total \n(5)"]
[null,null,"(1)Admin. & Mgmnt.","(2) Training","(3) Equipment","(4) Storage & Maint."]
["             a. Personnel",null,{"$f":"'6-Administration & Management'!H46","v":{"v":0,"d":"$0.00"}},{"$f":"'7-Training'!G46","v":{"v":0,"d":"$0.00"}},{"$f":"'8-Equipment'!F43","v":{"v":0,"d":"$0.00"}},{"$f":"'9-Storage & Maintenance'!F41","v":{"v":0,"d":"$0.00"}},{"$f":"SUM(C14:F14)","v":{"v":0,"d":"$0.00"}}]
["             b. Fringe Benefits",null,{"$f":"'6-Administration & Management'!G46","v":{"v":0,"d":"0.00"}},{"$f":"'7-Training'!F46","v":{"v":0,"d":"0.00"}},{"$f":"'8-Equipment'!E43","v":{"v":0,"d":"0.00"}},{"$f":"'9-Storage & Maintenance'!E41","v":{"v":0,"d":"0.00"}},{"$f":"SUM(C15:F15)","v":{"v":0,"d":"0.00"}}]
["             c. Travel",null,{"$f":"'6-Administration & Management'!E113","v":{"v":0,"d":"0.00"}},{"$f":"'7-Training'!D114","v":{"v":0,"d":"0.00"}},{"$f":"'8-Equipment'!E103","v":{"v":0,"d":"0.00"}},{"$f":"'9-Storage & Maintenance'!E101","v":{"v":0,"d":"0.00"}},{"v":0,"d":"0.00"}]
["             d. Equipment",null,{"$f":"'6-Administration & Management'!E162","v":{"v":0,"d":"0.00"}},{"$f":"'7-Training'!F166","v":{"v":0,"d":"0.00"}},{"$f":"'8-Equipment'!F158","v":{"v":0,"d":"0.00"}},{"$f":"'9-Storage & Maintenance'!F152","v":{"v":0,"d":"0.00"}},{"v":0,"d":"0.00"}]
["             e. Supplies",null,{"$f":"'6-Administration & Management'!E206","v":{"v":0,"d":"0.00"}},{"$f":"'7-Training'!E210","v":{"v":0,"d":"0.00"}},{"$f":"'8-Equipment'!E204","v":{"v":0,"d":"0.00"}},{"$f":"'9-Storage & Maintenance'!E195","v":{"v":0,"d":"0.00"}},{"v":0,"d":"0.00"}]
["             f. Contractual",null,{"$f":"'6-Administration & Management'!E249","v":{"v":0,"d":"0.00"}},{"$f":"'7-Training'!E254","v":{"v":0,"d":"0.00"}},{"$f":"'8-Equipment'!E247","v":{"v":0,"d":"0.00"}},{"$f":"'9-Storage & Maintenance'!G241","v":{"v":0,"d":"0.00"}},{"v":0,"d":"0.00"}]
["             g. Construction",null,"N/A","N/A","N/A","N/A","N/A"]
["             h. Other",null,{"$f":"'6-Administration & Management'!E280","v":{"v":0,"d":"0.00"}},{"$f":"'7-Training'!E286","v":{"v":0,"d":"0.00"}},{"$f":"'8-Equipment'!E279","v":{"v":0,"d":"0.00"}},{"$f":"'9-Storage & Maintenance'!E274","v":{"v":0,"d":"0.00"}},{"v":0,"d":"0.00"}]
["             i. Total Direct Charges (sum of 6a-6h)",null,{"$f":"SUM(C14:C21)","v":{"v":0,"d":"0.00"}},{"$f":"SUM(D14:D21)","v":{"v":0,"d":"0.00"}},{"$f":"SUM(E14:E21)","v":{"v":0,"d":"0.00"}},{"$f":"SUM(F14:F21)","v":{"v":0,"d":"0.00"}},{"v":0,"d":"0.00"}]
["             j. Indirect Charges",null,{"$f":"'6-Administration & Management'!F314","v":{"v":0,"d":"0.00"}},{"$f":"'7-Training'!F320","v":{"v":0,"d":"0.00"}},{"$f":"'8-Equipment'!F313","v":{"v":0,"d":"0.00"}},{"$f":"'9-Storage & Maintenance'!F309","v":{"v":0,"d":"0.00"}},{"v":0,"d":"0.00"}]
["             k. TOTALS (sum of 6i and 6j)",null,{"$f":"SUM(C22,C23)","v":{"v":0,"d":"$0.00"}},{"$f":"SUM(D22,D23)","v":{"v":0,"d":"$0.00"}},{"$f":"SUM(E22,E23)","v":{"v":0,"d":"$0.00"}},{"$f":"SUM(F22,F23)","v":{"v":0,"d":"$0.00"}},{"$f":"SUM(C24:F24)","v":{"v":0,"d":"$0.00"}}]
[]
["7. Program Income",null,"$","$","$","$","$"]
[]
[]
[" NON-FEDERAL RESOURCES"]
["(a) Grant Program",null,null,"(b) Applicant","(c) State ","(d) Other Sources","(e) TOTALS"]
["8. ",null,null,"$","$","$",{"$f":"SUM(D31:F31)","v":{"v":0,"d":"$0.00"}}]
["9.",{"$nulls":5},{"$f":"SUM(D32:F32)","v":{"v":0,"d":"0.00"}}]
["10.",{"$nulls":5},{"$f":"SUM(D33:F33)","v":{"v":0,"d":"0.00"}}]
["11.",{"$nulls":5},{"$f":"SUM(D34:F34)","v":{"v":0,"d":"0.00"}}]
["12. TOTAL (sum of lines 8-11)",null,null,{"$f":"SUM(D31,D32,D33,D34)","v":{"v":0,"d":"$0.00"}},{"$f":"SUM(E31,E32,E33,E34)","v":{"v":0,"d":"$0.00"}},{"$f":"SUM(F31,F32,F33,F34)","v":{"v":0,"d":"$0.00"}},{"$f":"SUM(G31,G32,G33,G34)","v":{"v":0,"d":"$0.00"}}]
["FORECASTED CASH NEEDS"]
["13. Federal",null,"Total for 1st Year","1st Quarter","2nd Quarter","3rd Quarter","4th Quarter"]
[null,null,{"$f":"SUM(D38:G38)","v":{"v":0,"d":"$0.00"}},"$","$","$","$"]
["14. Non-Federal",null,{"$f":"SUM(D39:G39)","v":{"v":0,"d":"0.00"}}]
["15. TOTAL (sum of lines 13 and 14)",null,{"$f":"SUM(D40:G40)","v":{"v":0,"d":"$0.00"}},{"$f":"SUM(D38:D39)","v":{"v":0,"d":"$0.00"}},{"$f":"SUM(E38:E39)","v":{"v":0,"d":"$0.00"}},{"$f":"SUM(F38:F39)","v":{"v":0,"d":"$0.00"}},{"$f":"SUM(G38:G39)","v":{"v":0,"d":"$0.00"}}]
["BUDGET ESTIMATES OF FEDERAL FUNDS NEEDED FOR BALANCE OF THE PROJECT"]
["(a) Grant Program",null,null,"FUTURE FUNDING PERIODS (Years)"]
[{"$nulls":3},"(b) First","(c) Second","(d) Third","(e) Fourth"]
["16. ",null,null,"$","$","$","$"]
["17."]
["18."]
["19."]
["20. TOTAL (sum of lines 16-19)",null,null,{"$f":"SUM(D44,D45,D46,D47)","v":{"v":0,"d":"$0.00"}},{"$f":"SUM(E44,E45,E46,E47)","v":{"v":0,"d":"$0.00"}},{"$f":"SUM(F44,F45,F46,F47)","v":{"v":0,"d":"$0.00"}},{"$f":"SUM(G44,G45,G46,G47)","v":{"v":0,"d":"$0.00"}}]
["OTHER BUDGET INFORMATION"]
["21. Direct Charges:",null,null,"22. Indirect Charges:"]
["23. Remarks: "]

{"sheet":"5-Purpose of Agreement","index":5,"n_rows":9,"n_cols":1,"rows_kept":9,"merged":[[0,0,0,4],[1,0,1,4],[2,0,2,4],[3,0,3,4],[4,0,4,4],[6,0,6,4],[8,0,8,4]]}
["National Urban Search & Rescue Response System"]
["US&R Task Force Readiness Cooperative Agreement Budget Narrative"]
["Purpose of Agreement"]
[]
["The purpose of this Readiness Cooperative Agreement is to continue the development and maintenance of National Urban Search and Rescue (US&R) Response System resources to be prepared for mission response and to provide qualified personnel in support of Emergency Support Function-9 (ESF-9) activities under the National Incident Management System (NIMS) and the National Response Framework (NRF).  "]
[]
["Our Task Force agrees to manage the continued development and maintenance of this National US&R Response System resource.  We will be prepared to provide qualified, competent US&R personnel in support of ESF-9 activities under the National Response Framework.  Specifically, this fiscal year's US&R Notice of Funding Opportunity (NOFO) and the accompanying budget narrative provides our plan to accomplish our objectives identified by DHS/FEMA.  This work plan identifies the key areas that our Task Force will focus its continued readiness efforts. These key areas are admistrative and program management, training, support, equipment cache preparedness, maintenance and storage.  These key areas are detailed in the Grant Guidance/Statement of Work.  This Cooperative Agreement will allow our Task Force to maintain a high standard and condition of operational readiness.  It is the intent of our Task Force to comply with this fiscal year's US&R NOFO throughout the duration of this agreement."]
[]
["While portions of this fiscal year's US&R NOFO are included in the budget narrative, we acknowledge compliance with this fiscal year's US&R NOFO in its entirety. "]

{"sheet":"6-Administration & Management","index":6,"n_rows":330,"n_cols":18,"rows_kept":330,"merged":[[0,0,0,8],[1,0,1,8],[2,0,2,8],[3,0,8,8],[9,0,9,7],[14,0,14,7],[16,0,16,8],[17,0,20,8],[21,0,24,8],[25,0,25,1],[47,7,47,8],[48,0,51,2],[48,7,58,8],[52,0,60,2],[59,5,61,8],[61,0,61,2],[63,7,63,8],[64,0,65,2],[64,7,74,8],[66,0,75,2],[75,5,77,8],[76,0,77,2],[79,0,79,7],[81,0,81,8],[82,0,86,8],[87,0,90,8],[94,8,94,15],[94,16,94,23],[94,24,94,31],[94,32,94,39],[94,40,94,47],[94,48,94,55],[94,56,94,63],[94,64,94,71],[94,72,94,79],[94,80,94,87],[94,88,94,95],[94,96,94,103],[94,104,94,111],[94,112,94,119],[94,120,94,127],[94,128,94,135],[94,136,94,143],[94,144,94,151],[94,152,94,159],[94,160,94,167],[94,168,94,175],[94,176,94,183],[94,184,94,191],[94,192,94,199],[94,200,94,207],[94,208,94,215],[94,216,94,223],[94,224,94,231],[94,232,94,239],[94,240,94,247],[94,248,94,255],[95,8,111,15],[95,16,111,23],[95,24,111,31],[95,32,111,39],[95,40,111,47],[95,48,111,55],[95,56,111,63],[95,64,111,71],[95,72,111,79],[95,80,111,87],[95,88,111,95],[95,96,111,103],[95,104,111,111],[95,112,111,119],[95,120,111,127],[95,128,111,135],[95,136,111,143],[95,144,111,151],[95,152,111,159],[95,160,111,167],[95,168,111,175],[95,176,111,183],[95,184,111,191],[95,192,111,199],[95,200,111,207],[95,208,111,215],[95,216,111,223],[95,224,111,231],[95,232,111,239],[95,240,111,247],[95,248,111,255],[114,7,114,8],[115,0,115,2],[115,7,125,8],[116,0,125,2],[126,0,127,2],[126,5,128,8],[130,0,130,7],[132,0,132,8],[133,0,136,8],[137,15,143,22],[137,23,143,30],[137,31,143,38],[137,39,143,46],[137,47,143,54],[137,55,143,62],[137,63,143,70],[137,71,143,78],[137,79,143,86],[137,87,143,94],[137,95,143,102],[137,103,143,110],[137,111,143,118],[137,119,143,126],[137,127,143,134],[137,135,143,142],[137,143,143,150],[137,151,143,158],[137,159,143,166],[137,167,143,174],[137,175,143,182],[137,183,143,190],[137,191,143,198],[137,199,143,206],[137,207,143,214],[137,215,143,222],[137,223,143,230],[137,231,143,238],[137,239,143,246],[137,247,143,254],[138,0,138,7],[163,7,163,8],[164,0,164,2],[164,5,167,8],[165,0,174,2],[168,7,175,8],[175,0,177,2],[176,5,177,15],[177,16,177,23],[177,24,177,31],[177,32,177,39],[177,40,177,47],[177,48,177,55],[177,56,177,63],[177,64,177,71],[177,72,177,79],[177,80,177,87],[177,88,177,95],[177,96,177,103],[177,104,177,111],[177,112,177,119],[177,120,177,127],[177,128,177,135],[177,136,177,143],[177,144,177,151],[177,152,177,159],[177,160,177,167],[177,168,177,175],[177,176,177,183],[177,184,177,191],[177,192,177,199],[177,200,177,207],[177,208,177,215],[177,216,177,223],[177,224,177,231],[177,232,177,239],[177,240,177,247],[177,248,177,255],[179,0,179,7],[181,0,181,8],[182,0,185,8],[188,0,188,7],[194,15,194,22],[194,23,194,30],[194,31,194,38],[194,39,194,46],[194,47,194,54],[194,55,194,62],[194,63,194,70],[194,71,194,78],[194,79,194,86],[194,87,194,94],[194,95,194,102],[194,103,194,110],[194,111,194,118],[194,119,194,126],[194,127,194,134],[194,135,194,142],[194,143,194,150],[194,151,194,158],[194,159,194,166],[194,167,194,174],[194,175,194,182],[194,183,194,190],[194,191,194,198],[194,199,194,206],[194,207,194,214],[194,215,194,222],[194,223,194,230],[194,231,194,238],[194,239,194,246],[194,247,194,254],[195,16,208,23],[195,24,208,31],[195,32,208,39],[195,40,208,47],[195,48,208,55],[195,56,208,63],[195,64,208,71],[195,72,208,79],[195,80,208,87],[195,88,208,95],[195,96,208,103],[195,104,208,111],[195,112,208,119],[195,120,208,127],[195,128,208,135],[195,136,208,143],[195,144,208,151],[195,152,208,159],[195,160,208,167],[195,168,208,175],[195,176,208,183],[195,184,208,191],[195,192,208,199],[195,200,208,207],[195,208,208,215],[195,216,208,223],[195,224,208,231],[195,232,208,239],[205,0,205,2],[207,7,207,8],[208,0,208,2],[208,7,218,8],[209,0,218,2],[219,5,221,8],[223,0,223,7],[225,0,225,8],[226,0,227,8],[231,0,231,1],[232,0,232,1],[233,0,233,1],[234,0,234,1],[235,0,235,1],[236,0,236,1],[237,0,237,1],[238,0,238,1],[239,0,239,1],[240,0,240,1],[241,0,241,1],[242,0,242,1],[243,0,243,1],[244,0,244,1],[245,0,245,1],[246,0,246,1],[247,0,247,1],[249,0,249,7],[250,7,250,8],[251,0,251,2],[251,7,261,8],[252,0,261,2],[262,5,264,8],[266,0,266,7],[268,0,268,8],[269,0,269,8],[271,0,271,2],[273,0,273,1],[274,0,274,1],[275,0,275,1],[276,0,276,1],[277,0,277,1],[278,0,278,1],[279,0,279,1],[281,7,281,8],[282,0,282,2],[282,7,292,8],[283,0,292,2],[293,5,295,8],[297,0,297,7],[299,0,299,8],[300,0,303,8],[306,1,306,2],[307,1,307,2],[308,1,308,2],[309,1,309,2],[310,1,310,2],[311,1,311,2],[312,1,312,2],[315,7,315,8],[316,0,317,2],[316,7,326,8],[318,0,327,2],[327,5,329,8]]}
["ADMINISTRATION & MANAGEMENT"]
["FEMA Form 089-0-10C"]
[" Task Force General Comments"]
["Our Task Force will accomplish the goals set forth in the DHS-FEMA statement of work, guidance, and directives provided by the Urban Search & Rescue Program Office. The costs for the Administration & Management portion of this budget/narrative will be addressed in this section and will cover costs for a maximum amount of time of 12 months,  and the costs will occur within the 36 month period of performance.  The cost details will be provided in the object classes within this Program Category.  The Administrative/Management personnel under this Readiness Cooperative Agreeement is responsible for the day-to-day operations of the Task Force and will be responsible to ensure that all management, administration and operational requirements are accomplished. Our Task Force will attempt to maintain the preparedness of the Task Force under this Readiness Cooperative Agreement, in order to provide critical emergency response services as one of the 28 teams for the National Urban Search and Rescue Response System under the Response Cooperative Agreement.   Funding for any deployments will be handled under the Response Cooperative Agreement. "]
{"$rows_empty":7}
["Total Administration & Management Cost"]
[{"$f":"SUM(I46,E113,E162,E206,E249,E280,F314)","v":{"v":0,"d":"$0"}}]
[]
["Personnel Salaries & Fringe Benefits"]
[]
["Notes for Personnel Salaries and Fringe Benefits Section"]
["The US&R Task Force will provide sufficient staff for management and administration of the Task Force day- to-day activities to accomplish required supervisory, administrative, training and logistical duties.  Specifically: program management; grants management; financial management; administrative support; training coordination and instruction; logistics management and property accountability.  This shall include, but is not limited to, funding personnel salaries relating to Task Force development and management; record-keeping, inventory and maintenance of the US&R Equipment Caches; correspondence with Task Force members and parties who support Task Force activities; along with similar management and administrative tasks.   \n\n"]
[]
[]
[{"$nulls":17},"National Meetings:"]
["Provide the staffs' salary, benefits, and also note any cost of living increases (percentage and amount) below that will be paid under the Readiness Cooperative Agreement.  There is a drop down menu for the staff positions, and any additional  staff not noted can be added.  If a staff position is part time, please provide the hours and hourly rate in the Personnel box below to clarify the time to be allotted, e.g., one day a week, 40 hours a month at a rate of $45.00 per hour , etc.  If overtime hours are listed, please note them as a separate line item below.   Put the total amount under salary.  Note the hourly rate in the clarification box.",{"$nulls":16},"Operations Group Meeting "]
[{"$nulls":17},"Task Force Representatives’ Meeting "]
[{"$nulls":17},"Work Group Meetings"]
[{"$nulls":17},"Task Force Representatives’ Meeting "]
["Personnel Salaries and Fringe Benefits",{"$nulls":16},"On-Site Peer Evaluation (Peer Evaluators)"]
["Staff Position","Name","Full/Part Time","Overtime Hours","Salary Dates (Current)","Salary Dates (Prior)","Fringe Benefits","Salary","Total",{"$nulls":8},"Strategic Group Meeting"]
[{"$nulls":8},{"$f":"SUM(G28:H28)","v":{"v":0,"d":"$0"}},{"$nulls":8},"Grant Workshop"]
[{"$nulls":8},{"v":0,"d":"$0"},{"$nulls":8},"Sponsoring Agency Chiefs' Meeting"]
[{"$nulls":8},{"v":0,"d":"$0"},{"$nulls":8},"Other Authorized Travel"]
[{"$nulls":8},{"v":0,"d":"$0"}]
[{"$nulls":8},{"v":0,"d":"$0"}]
[{"$nulls":8},{"v":0,"d":"$0"}]
[{"$nulls":8},{"v":0,"d":"$0"}]
[{"$nulls":8},{"v":0,"d":"$0"}]
[{"$nulls":8},{"v":0,"d":"$0"}]
[{"$nulls":8},{"v":0,"d":"$0"}]
[{"$nulls":8},{"v":0,"d":"$0"}]
[{"$nulls":8},{"v":0,"d":"$0"}]
["If other, list here",{"$nulls":7},{"v":0,"d":"$0"}]
["If other, list here",{"$nulls":7},{"v":0,"d":"$0"}]
["If other, list here",{"$nulls":7},{"v":0,"d":"$0"}]
["If other, list here",{"$nulls":7},{"v":0,"d":"$0"}]
["If other, list here",{"$nulls":7},{"v":0,"d":"$0"}]
["If other, list here",{"$nulls":7},{"v":0,"d":"$0"}]
["Totals",{"$nulls":5},{"$f":"ROUND(SUM(G28:G45),0)","v":{"v":0,"d":"$0"}},{"$f":"ROUND(SUM(H28:H45),0)","v":{"v":0,"d":"$0"}},{"$f":"ROUND(SUM(I28:I45),0)","v":{"v":0,"d":"$0"}}]
[]
["Personnel Salaries",null,null,"Cost Basis: ","Please mark appropriate box(es) below. "]
["The area below is for any additional notes the Task Force may need to add for clarifying the paid staff positions.  If the position is part-time list the hours, and hourly rate.   Also there is a separate area (Tab 11) for the position descriptions for each staff position listed, or position descriptions may be added as an attachment. "]
[{"$nulls":4},"Union Agreements"]
[]
[{"$nulls":4},"City/County/Organization Negotiated Agreements"]
[]
[{"$nulls":4},"Historical Data"]
[]
[{"$nulls":4},"Bids/Quotes"]
[]
[{"$nulls":4},"Costs are in Comparison w/ other TFs for Similar Tasks or Items"]
[]
[{"$nulls":4},"Other ","(List here): "]
[]
["This narrative box has character limitations.  For additional clarification use tab 12"]
[]
["Fringe Benefits",null,null,"Cost Basis: ","Please mark appropriate box(es) below. "]
["The area below is to state the total percentage (e.g., 23%) for the Fringe Benefits (if applicable) and list the items (e.g., health, dental, workers' comp) that are included."]
[{"$nulls":4},"Union Agreements"]
[]
[{"$nulls":4},"City/County/Organization Negotiated Agreements"]
[]
[{"$nulls":4},"Historical Data"]
[]
[{"$nulls":4},"Bids/Quotes"]
[]
[{"$nulls":4},"Costs are in Comparison w/ other TFs for Similar Tasks or Items"]
[]
[{"$nulls":4},"Other ","(List here): "]
["This narrative box has character limitations.  For additional clarification use tab 12"]
[]
[]
["Travel"]
[]
["Notes for Travel Section"]
["Attend DHS/FEMA-sponsored or DHS/FEMA-approved US&R meetings, conferences, and training sessions, to include Task Force Leader meetings, Advisory Organization Meetings, Ad Hoc Groups and Sub-Groups, Incident Support Team (IST) training/meetings, workshops, or others as directed by the US&R Program Office as they relate to the National US&R Response System.  Other activities include on-site peer Administrative Readiness Evaluation (ARE) of other Task Forces, quality assurance oversight of FEMA-sanctioned training courses, training with other Task Forces, grants management training, and research and development for equipment, as directed by the US&R Program Office.  Based on approval by the US&R Program Office and available funding, Task Forces can use funds to cover travel for product research and development efforts, thereby keeping apprised of cutting edge technology for equipment used within the System. \n"]
[]
[]
[]
[]
["There are also miscellaneous meetings that are required due to the dynamic program.  Costs can be provided in detail or by trip costs, and a detail of the costs should be listed in the comments sections, that will show how you arrived at the trip total.  The costs listed below are estimates due to travel locations that are unknown at the time of application.  It is at this time when costs are generally based on historical data. There are drop down menus for some of the meetings, and you can add others that are in line with the statement of work.  The drop down menu in the section below includes all  events, allowing you the flexibility to account for your travel costs in this section Admin/Management Program Category or the Training Program Category.  The Task Force is authorized to reallocate funds between Admin/Management travel and Training travel without requesting a budget change authorization.  However, this change must be reflected in your Performance Report and note the reason(s) for the change."]
[]
[]
[]
[]
["Travel"]
["Event Title","No. of Personnel","No. of Trips","Cost Per Person","Lump Sum "]
[{"$nulls":4},{"$f":"B95*C95*D95","v":{"v":0,"d":"$0"}}]
[{"$nulls":4},{"$f":"B96*C96*D96","v":{"v":0,"d":"$0"}}]
[{"$nulls":4},{"v":0,"d":"$0"}]
[{"$nulls":4},{"v":0,"d":"$0"}]
[{"$nulls":4},{"v":0,"d":"$0"}]
[{"$nulls":4},{"v":0,"d":"$0"}]
[{"$nulls":4},{"v":0,"d":"$0"}]
[{"$nulls":4},{"v":0,"d":"$0"}]
[{"$nulls":4},{"v":0,"d":"$0"}]
["If other, list here",{"$nulls":3},{"v":0,"d":"$0"}]
["If other, list here",{"$nulls":3},{"v":0,"d":"$0"}]
["If other, list here",{"$nulls":3},{"v":0,"d":"$0"}]
["If other, list here",{"$nulls":3},{"v":0,"d":"$0"}]
["If other, list here",{"$nulls":3},{"v":0,"d":"$0"}]
["If other, list here",{"$nulls":3},{"v":0,"d":"$0"}]
["If other, list here",{"$nulls":3},{"v":0,"d":"$0"}]
["If other, list here",{"$nulls":3},{"v":0,"d":"$0"}]
["If other, list here",{"$nulls":3},{"v":0,"d":"$0"}]
["Total",{"$nulls":3},{"$f":"ROUND(SUM(E95:E112),0)","v":{"v":0,"d":"$0"}}]
[]
["Travel",null,null,"Cost Basis: ","Please mark appropriate box(es) below. "]
["Briefly describe breakdown of travel Cost Per Person.  Provide examples of \"other authorized travel\" if selected above."]
[{"$nulls":4},"Union Agreements"]
[]
[{"$nulls":4},"City/County/Organization Negotiated Agreements"]
[]
[{"$nulls":4},"Historical Data"]
[]
[{"$nulls":4},"Bids/Quotes"]
[]
[{"$nulls":4},"Costs are in Comparison w/ other TFs for Similar Tasks or Items"]
[]
["This narrative box has character limitations.  For additional clarification use tab 12",{"$nulls":3},"Other ","(List here): "]
[]
[]
[]
["Equipment"]
[]
["Notes for Equipment Section"]
["Purchase of office furniture and equipment specifically for administrative purposes are allowable under this Cooperative Agreement.  This shall include, but is not limited to, laptops and desktop computers, higher-end printers, scanners, copy machines, desks, book shelves, etc.  The costs noted in this area are for the purchase of equipment and not service agreements, which should be included under contractual or other.  Rolling or floating transportation will require specifications as part of the application and should be listed under the Equipment Program Category.  The general definition out of 2 C.F.R. Part 200 is:  Equipment is tangible personal property with a useful life of at least 1 year & a per unit cost of at least $5,000 (or the non-federal entity’s equivalent threshold, whichever is lower)."]
[]
[]
[]
["Equipment"]
["These are the items our Task Force anticipates requiring for this Cooperative Agreement for the equipment object class under the Administration/Management Program Category.  However, due to the dynamic program, the requirements for these items (within the amount approved at time of award for this object class) may change.   Any changes to listed items will be reflected in the Performance Reports, with the reason for the change noted and the Task Force will not be required to submit a budget change if items are on the approved cache lists, authorized by program guidance or directives.  "]
["Item Description","Cache #","Unit Cost","No. of Units","Total Cost"]
[{"$nulls":4},{"$f":"C141*D141","v":{"v":0,"d":"$0"}}]
[{"$nulls":4},{"$f":"C142*D142","v":{"v":0,"d":"$0"}}]
[{"$nulls":4},{"v":0,"d":"$0"}]
[{"$nulls":4},{"v":0,"d":"$0"}]
[{"$nulls":4},{"v":0,"d":"$0"}]
[{"$nulls":4},{"v":0,"d":"$0"}]
[{"$nulls":4},{"v":0,"d":"$0"}]
[{"$nulls":4},{"v":0,"d":"$0"}]
[{"$nulls":4},{"v":0,"d":"$0"}]
[{"$nulls":4},{"v":0,"d":"$0"}]
[{"$nulls":4},{"v":0,"d":"$0"}]
[{"$nulls":4},{"v":0,"d":"$0"}]
[{"$nulls":4},{"v":0,"d":"$0"}]
[{"$nulls":4},{"v":0,"d":"$0"}]
[{"$nulls":4},{"v":0,"d":"$0"}]
[{"$nulls":4},{"v":0,"d":"$0"}]
[{"$nulls":4},{"v":0,"d":"$0"}]
[{"$nulls":4},{"v":0,"d":"$0"}]
[{"$nulls":4},{"v":0,"d":"$0"}]
[{"$nulls":4},{"v":0,"d":"$0"}]
[{"$nulls":4},{"v":0,"d":"$0"}]
["Total",{"$nulls":3},{"$f":"ROUND(SUM(E141:E161),0)","v":{"v":0,"d":"$0"}}]
[]
["Equipment",null,null,"Cost Basis: ","Please mark appropriate box(es) below. "]
["Describe any additional supporting information for equipment costs below."]
[]
[{"$nulls":4},"Union Agreements"]
[]
[{"$nulls":4},"City/County/Organization Negotiated Agreements"]
[]
[{"$nulls":4},"Historical Data"]
[]
[{"$nulls":4},"Bids/Quotes"]
[]
[{"$nulls":4},"Costs are in Comparison w/ other TFs for Similar Tasks or Items"]
["This narrative box has character limitations.  For additional clarification, use tab 12."]
[{"$nulls":4},"Other ","(List here): "]
[]
[]
["Supplies"]
[]
["Notes for Supplies Section"]
["In the below area, provide an approximate listing of the supplies necessary for the administration/management of this cooperative agreement.  Supply items/costs that should be listed are items to support the administration/management of the Task Force and other than what the equipment definition states in 2 C.F.R. Part 200.  Supplies, on the other hand, are tangible personal property lower than the $5,000 equipment threshold or have a useful life of less than a year. Phones, tablets, etc. would more likely be supplies than equipment. However, due to the dynamic program, the requirements for these items (within the amount approved at time of award for this object class) may change.   Any changes to the listed items will be reflected in the Performance Reports, including the reason for the change(s) noted."]
[]
[]
[]
[]
["Supplies "]
["These are the items we anticipate requiring for this Cooperative Agreement.  However, due to the dynamic program, requirement of these items may change and any changes will be reflected in the Performance Reports, with the reason for the change noted.  "]
["Item","Cache #","Unit Cost","No. of Units","Total cost"]
[{"$nulls":4},{"$f":"SUM(C191*D191)","v":{"v":0,"d":"$0"}}]
[{"$nulls":4},{"$f":"SUM(C192*D192)","v":{"v":0,"d":"$0"}}]
[{"$nulls":4},{"v":0,"d":"$0"}]
[{"$nulls":4},{"v":0,"d":"$0"}]
[{"$nulls":4},{"v":0,"d":"$0"}]
[{"$nulls":4},{"v":0,"d":"$0"}]
[{"$nulls":4},{"v":0,"d":"$0"}]
[{"$nulls":4},{"v":0,"d":"$0"}]
[{"$nulls":4},{"v":0,"d":"$0"}]
[{"$nulls":4},{"v":0,"d":"$0"}]
[{"$nulls":4},{"v":0,"d":"$0"}]
[{"$nulls":4},{"v":0,"d":"$0"}]
[{"$nulls":4},{"v":0,"d":"$0"}]
[{"$nulls":4},{"v":0,"d":"$0"}]
[{"$nulls":4},{"v":0,"d":"$0"}]
["Total",{"$nulls":3},{"$f":"SUM(E191:E205)","v":{"v":0,"d":"$0"}}]
[]
["Supplies",null,null,"Cost Basis: ","Please mark appropriate box(es) below. "]
["Describe any additional supporting information for supply costs below."]
[{"$nulls":4},"Union Agreements"]
[]
[{"$nulls":4},"City/County/Organization Negotiated Agreements"]
[]
[{"$nulls":4},"Historical Data"]
[]
[{"$nulls":4},"Bids/Quotes"]
[]
[{"$nulls":4},"Costs are in Comparison w/ other TFs for Similar Tasks or Items"]
[]
["This narrative box has character limitations.  For additional clarification, use tab 12.",{"$nulls":3},"Other","(List here): "]
[]
[]
[]
["Contractual"]
[]
["Notes for Contractual Section"]
["In the area below, list any contractual costs for medical exams, services, rentals, etc.  The Task Force will ensure that Task Force Medical Screening will take place in accordance with Program Directive 2005-008 or a more current revised directive issued by the US&R Program Office."]
[]
[]
["Contractual"]
["Service",null,"Quantity","Unit Cost","Total Cost"]
[{"$nulls":4},{"$f":"C232*D232","v":{"v":0,"d":"$0"}}]
[{"$nulls":4},{"$f":"C233*D233","v":{"v":0,"d":"$0"}}]
[{"$nulls":4},{"v":0,"d":"$0"}]
[{"$nulls":4},{"v":0,"d":"$0"}]
[{"$nulls":4},{"v":0,"d":"$0"}]
[{"$nulls":4},{"v":0,"d":"$0"}]
[{"$nulls":4},{"v":0,"d":"$0"}]
[{"$nulls":4},{"v":0,"d":"$0"}]
[{"$nulls":4},{"v":0,"d":"$0"}]
[{"$nulls":4},{"v":0,"d":"$0"}]
[{"$nulls":4},{"v":0,"d":"$0"}]
[{"$nulls":4},{"v":0,"d":"$0"}]
[{"$nulls":4},{"v":0,"d":"$0"}]
[{"$nulls":4},{"v":0,"d":"$0"}]
[{"$nulls":4},{"v":0,"d":"$0"}]
[{"$nulls":4},{"v":0,"d":"$0"}]
[{"$nulls":4},{"v":0,"d":"$0"}]
["Total",{"$nulls":3},{"$f":"ROUND(SUM(E232:E248),0)","v":{"v":0,"d":"$0"}}]
[]
["Contractual",null,null,"Cost Basis: ","Please mark appropriate box(es) below. "]
["Describe any additional supporting information for contractual costs below."]
[{"$nulls":4},"Union Agreements"]
[]
[{"$nulls":4},"City/County/Organization Negotiated Agreements"]
[]
[{"$nulls":4},"Historical Data"]
[]
[{"$nulls":4},"Bids/Quotes"]
[]
[{"$nulls":4},"Costs are in Comparison w/ other TFs for Similar Tasks or Items"]
[{"$nulls":4},"Other","(List here): "]
["This narrative box has character limitations.  For additional clarification, use tab 12."]
[]
[]
[]
["Other"]
[]
["Notes for Other Section"]
["This area will cover any miscellaneous items that are not covered in the other object classes and are allowable within the Statement of Work."]
[]
[]
["Item",null,"Quantity","Unit Cost","Total Cost"]
[{"$nulls":4},{"$f":"C274*D274","v":{"v":0,"d":"$0"}}]
[{"$nulls":4},{"v":0,"d":"$0"}]
[{"$nulls":4},{"v":0,"d":"$0"}]
[{"$nulls":4},{"v":0,"d":"$0"}]
[{"$nulls":4},{"v":0,"d":"$0"}]
[{"$nulls":4},{"v":0,"d":"$0"}]
["Total",{"$nulls":3},{"$f":"ROUND(SUM(E274:E279),0)","v":{"v":0,"d":"$0"}}]
[]
["Other",null,null,"Cost Basis: ","Please mark appropriate box(es) below. "]
["Describe any additional supporting information for other costs below."]
[{"$nulls":4},"Union Agreements"]
[]
[{"$nulls":4},"City/County/Organization Negotiated Agreements"]
[]
[{"$nulls":4},"Historical Data"]
[]
[{"$nulls":4},"Bids/Quotes"]
[]
[{"$nulls":4},"Costs are in Comparison w/ other TFs for Similar Tasks or Items"]
[]
["This narrative box has character limitations.  For additional clarification, use tab 12.",{"$nulls":3},"Other","(List here): "]
[]
[]
[]
["Indirect Costs"]
[]
["Notes for Indirect Costs Section"]
["Indirect Costs can only be listed if there is an Indirect Cost Rate Agreement that has been approved by a cognizant Federal Agency.  A copy of the Indirect Cost Rate Agreement should accompany  the application.  The Indirect Cost Rate Agreement you provide should state what category or categories  the Indirect Costs are based on, ie equipment, salaries, all expenses,  etc.   The information provided below should list the description of the cost category for the base, the amount on which it's based, the percentage, and the total.  The rate or amount approved at time of award will prevail thru the term of the Cooperative Agreement."]
[]
[]
[]
[]
["Indirect Costs "]
["Item/Category","Item Description",null,"Base Amount","Percentage","Total Cost"]
[]
[]
[]
[]
[]
[]
["Total",{"$nulls":4},{"$f":"SUM(F308:F313)","v":{"v":0,"d":"$0"}}]
[]
["Indirect Costs",null,null,"Cost Basis: ","Please mark appropriate box(es) below. "]
["Describe any additional supporting information for indirect costs below.  Please advise who is the Cognizant Federal Agency and the date of approval."]
[{"$nulls":4},"Union Agreements"]
[]
[{"$nulls":4},"City/County/Organization Negotiated Agreements"]
[]
[{"$nulls":4},"Historical Data"]
[]
[{"$nulls":4},"Bids/Quotes"]
[]
[{"$nulls":4},"Costs are in Comparison w/ other TFs for Similar Tasks or Items"]
[]
[{"$nulls":4},"Other","(List here):"]
["This narrative box has character limitations.  For additional clarification, use tab 12."]
[{"$nulls":3},"`"]

{"sheet":"7-Training","index":7,"n_rows":335,"n_cols":22,"rows_kept":335,"merged":[[0,0,0,7],[1,0,1,7],[2,0,2,7],[3,0,12,7],[13,0,13,7],[18,0,18,7],[20,0,20,7],[21,0,26,7],[28,0,28,1],[48,0,49,2],[50,0,59,2],[59,5,61,7],[60,0,61,2],[64,0,66,2],[67,0,76,2],[75,5,77,7],[79,0,79,7],[81,0,81,7],[82,0,86,7],[83,8,83,15],[83,16,83,23],[83,24,83,31],[83,32,83,39],[83,40,83,47],[83,48,83,55],[83,56,83,63],[83,64,83,71],[83,72,83,79],[83,80,83,87],[83,88,83,95],[83,96,83,103],[83,104,83,111],[83,112,83,119],[83,120,83,127],[83,128,83,135],[83,136,83,143],[83,144,83,151],[83,152,83,159],[83,160,83,167],[83,168,83,175],[83,176,83,183],[83,184,83,191],[83,192,83,199],[83,200,83,207],[83,208,83,215],[83,216,83,223],[83,224,83,231],[83,232,83,239],[83,240,83,247],[83,248,83,255],[84,8,93,15],[84,16,93,23],[84,24,93,31],[84,32,93,39],[84,40,93,47],[84,48,93,55],[84,56,93,63],[84,64,93,71],[84,72,93,79],[84,80,93,87],[84,88,93,95],[84,96,93,103],[84,104,93,111],[84,112,93,119],[84,120,93,127],[84,128,93,135],[84,136,93,143],[84,144,93,151],[84,152,93,159],[84,160,93,167],[84,168,93,175],[84,176,93,183],[84,184,93,191],[84,192,93,199],[84,200,93,207],[84,208,93,215],[84,216,93,223],[84,224,93,231],[84,232,93,239],[84,240,93,247],[84,248,93,255],[87,0,91,7],[116,0,117,2],[118,0,127,2],[127,5,129,7],[128,0,129,2],[131,0,131,7],[133,0,133,7],[134,0,139,7],[142,0,142,7],[152,8,152,15],[152,16,152,23],[152,24,152,31],[152,32,152,39],[152,40,152,47],[152,48,152,55],[152,56,152,63],[152,64,152,71],[152,72,152,79],[152,80,152,87],[152,88,152,95],[152,96,152,103],[152,104,152,111],[152,112,152,119],[152,120,152,127],[152,128,152,135],[152,136,152,143],[152,144,152,151],[152,152,152,159],[152,160,152,167],[152,168,152,175],[152,176,152,183],[152,184,152,191],[152,192,152,199],[152,200,152,207],[152,208,152,215],[152,216,152,223],[152,224,152,231],[152,232,152,239],[152,240,152,247],[152,248,152,255],[153,8,166,15],[153,16,166,23],[153,24,166,31],[153,32,166,39],[153,40,166,47],[153,48,166,55],[153,56,166,63],[153,64,166,71],[153,72,166,79],[153,80,166,87],[153,88,166,95],[153,96,166,103],[153,104,166,111],[153,112,166,119],[153,120,166,127],[153,128,166,135],[153,136,166,143],[153,144,166,151],[153,152,166,159],[153,160,166,167],[153,168,166,175],[153,176,166,183],[153,184,166,191],[153,192,166,199],[153,200,166,207],[153,208,166,215],[153,216,166,223],[153,224,166,231],[153,232,166,239],[153,240,166,247],[153,248,166,255],[168,0,168,2],[169,0,179,2],[179,5,181,7],[179,8,179,15],[179,16,179,23],[179,24,179,31],[179,32,179,39],[179,40,179,47],[179,48,179,55],[179,56,179,63],[179,64,179,71],[179,72,179,79],[179,80,179,87],[179,88,179,95],[179,96,179,103],[179,104,179,111],[179,112,179,119],[179,120,179,127],[179,128,179,135],[179,136,179,143],[179,144,179,151],[179,152,179,159],[179,160,179,167],[179,168,179,175],[179,176,179,183],[179,184,179,191],[179,192,179,199],[179,200,179,207],[179,208,179,215],[179,216,179,223],[179,224,179,231],[179,232,179,239],[179,240,179,247],[179,248,179,255],[180,0,181,2],[183,0,183,7],[185,0,185,7],[186,0,189,7],[192,0,192,7],[209,0,209,2],[212,0,212,2],[213,0,222,2],[223,0,224,2],[223,5,225,7],[227,0,227,7],[229,0,229,7],[230,0,232,7],[236,0,236,1],[237,0,237,1],[238,0,238,1],[239,0,239,1],[240,0,240,1],[241,0,241,1],[242,0,242,1],[243,0,243,1],[244,0,244,1],[245,0,245,1],[246,0,246,1],[247,0,247,1],[248,0,248,1],[249,0,249,1],[250,0,250,1],[251,0,251,1],[252,0,252,1],[256,0,256,2],[257,0,266,2],[267,0,268,2],[267,5,269,7],[271,0,271,7],[273,0,273,7],[274,0,275,7],[277,0,277,2],[279,0,279,1],[280,0,280,1],[281,0,281,1],[282,0,282,1],[283,0,283,1],[284,0,284,1],[285,0,285,1],[288,0,288,2],[289,0,298,2],[299,0,300,2],[299,5,301,7],[303,0,303,7],[305,0,305,7],[306,0,309,7],[312,1,312,2],[313,1,313,2],[314,1,314,2],[315,1,315,2],[316,1,316,2],[317,1,317,2],[318,1,318,2],[322,0,323,2],[324,0,333,2],[333,5,335,7],[334,0,335,2]]}
["TRAINING"]
["FEMA Form 089-0-10D"]
["Task Force General Comments"]
["This Program Category covers the costs for the training portion of this Readiness Cooperative Agreement.  The training portion of this budget/narrative will cover costs for a maximum amount of time of 12 months, and will be accomplished within the 36 month period of performance.  This Task Force intends to maintain a deployable Task Force and will provide the required training to insure mission readiness, safety, and management of the Task Force.  The training will be accomplished in accordance with the Urban Search & Rescue Program Office statement of work, program guidance, directives, and will also include training to meet the NIMS compliance requirements.  The training cost details will be provided in the below object classes under this Program Category.  Our Task Force will attempt to maintain the preparedness of the Task Force under this Readiness Cooperative Agreement, in order to provide critical emergency response services as one of the 28 teams for the National Urban Search and Rescue Response System.  Funding for any deployments will be handled under the Activation Cooperative Agreement.   The below list of training and costs covers what is anticipated for this Readiness Cooperative Agreement.  Due to the dynamic program, training scheduling and requirement changes, some of the training listed may require revisions.  Any changes will be noted within the Performance Reports, and will include the change and the reason for the change.  It will not require a budget adjustment as long as the change is within the Program Category total as noted at time of award, and is an approved training requirement within the statement of work, program guidance, and directives.  The only exception to this is the movement of travel funds between the Administration/Managment Program Category and the Training Program Category, which can be accomplished without requiring a budget change, however, it must be noted in the Performance Reports, with the change and the reason for the movement of funds. "]
[{"$nulls":20},"Staff Positions"]
[{"$nulls":20},"Administrative Specialist "]
[{"$nulls":20},"Financial Grants Manager"]
[{"$nulls":20},"Grant Manager"]
[{"$nulls":20},"Logistics Coordinator "]
[]
[]
[]
[{"$nulls":20},"Logistics Manager"]
[]
[{"$nulls":20},"Program Manager"]
["Total Training Cost",{"$nulls":19},"Training Coordinator"]
[{"$f":"SUM(H46,D114,F166,E210,E254,E286,F320)","v":{"v":0,"d":"$0"}},{"$nulls":19},"Training Manager "]
[]
["Personnel Salaries & Fringe Benefits",{"$nulls":19},"Full-Time"]
[{"$nulls":20},"Part-Time"]
["Notes for Personnel Salaries and Fringe Benefits Section"]
["The Task Force can use this category to account for the salaries of Task Force Members attending US&R-related, US&R required, and local training as well as salaries for the training coordinator.  This includes, but is not limited to, functional training, mobilization training, local training for the program, grants management training, training with other task forces, research and development for equipment, and other DHS/FEMA approved training events, or training related to the requirements of the US&R program, as approved by the Program Manager/Grants Assistance Officer.  This may also include backfill expenses for the individual(s) attending training.  If specific costs are unknown, give estimated salary hours and average salary rate.  If specific dates are unknown, provide estimated time frame (e.g., 1 day per week/month, etc.).  If overtime hours are listed, please note them as a separate line item below.   Put the total amount under salary.  Note the hourly rate in the clarification box.",{"$nulls":19}," Functional Training Courses:","All Courses/Meetings"]
[{"$nulls":20},"Canine Search Specialist ","Canine Search Specialist "]
[{"$nulls":20},"Communications Specialist ","Communications Specialist "]
[{"$nulls":20},"Heavy Equipment & Rigging Specialist ","Grants Manager Training"]
[{"$nulls":20},"Incident Support Team ","Haz Mat Specialist"]
[{"$nulls":20},"Planning Specialist","Heavy Equipment & Rigging Specialist "]
[{"$nulls":20},"Technical Information Specialist","Logistics Specialist"]
["Personnel Salaries and Fringe Benefits",{"$nulls":19},"Technical Search Specialist","Medical Specialist"]
["Staff Position","Training Event Description","Full/Part Time","Overtime Hours","Date Salary Charged ","Fringe Benefits (If Applicable)","Salary","Total",{"$nulls":13},"Planning Specialist"]
[{"$nulls":7},{"$f":"SUM(F31:G31)","v":{"v":0,"d":"$0"}},{"$nulls":12},"National Meetings:","Safety Officer"]
[{"$nulls":7},{"v":0,"d":"$0"},{"$nulls":12},"On-Site Peer Evaluation ","Structural Collapse Technician"]
[{"$nulls":7},{"v":0,"d":"$0"},{"$nulls":12},"Operations Group Meeting ","Task Force Leader"]
[{"$nulls":7},{"v":0,"d":"$0"},{"$nulls":12},"Task Force Representatives’ Meeting ","Task Force Safety Officer"]
[{"$nulls":7},{"v":0,"d":"$0"},{"$nulls":12},"Work Group Meetings","Technical Information Specialist"]
[{"$nulls":7},{"v":0,"d":"$0"},{"$nulls":13},"Technical Search Specialist"]
[{"$nulls":7},{"v":0,"d":"$0"},{"$nulls":13},"Other Authorized Travel"]
[{"$nulls":7},{"v":0,"d":"$0"},{"$nulls":12},"Add'l Notes"]
[{"$nulls":7},{"v":0,"d":"$0"},{"$nulls":12},"Task Force Representatives’ Meeting (usually planned adjacent to Ops Group Meeting)"]
[{"$nulls":7},{"v":0,"d":"$0"},{"$nulls":12},"On-Site Peer Evaluation (Peer Evaluators)"]
[{"$nulls":7},{"v":0,"d":"$0"},{"$nulls":12},"(Events take place in different locations)"]
[{"$nulls":7},{"v":0,"d":"$0"}]
[{"$nulls":7},{"v":0,"d":"$0"},{"$nulls":12},"Cost Basis "]
[{"$nulls":7},{"v":0,"d":"$0"},{"$nulls":12},"Union Agreements"]
[{"$nulls":7},{"v":0,"d":"$0"},{"$nulls":12},"City/County/Organization Negotiated Agreements"]
["Totals",{"$nulls":4},{"$f":"ROUND(SUM(F31:F45),0)","v":{"v":0,"d":"$0"}},{"$f":"ROUND(SUM(G31:G45),0)","v":{"v":0,"d":"$0"}},{"$f":"ROUND(SUM(H31:H45),0)","v":{"v":0,"d":"$0"}},{"$nulls":12},"Historical Data"]
[{"$nulls":20},"Bids/Quotes"]
["Personnel Salaries  ",null,null,"Cost Basis: ","Please mark appropriate box(es) below. ",{"$nulls":15},"Costs are in Comparison with other TFs for Similar Tasks or Items"]
["The area below is to provide additional notes the Task Force may need to add for clarifying the range of salary rates used to develop the average hourly costs.",{"$nulls":19},"Other "]
[{"$nulls":4},"Union Agreements"]
[{"$nulls":20},"Cache List"]
[{"$nulls":4},"City/County/Organization Negotiated Agreements",{"$nulls":15},"Communications"]
[{"$nulls":20},"Haz Mat/WMD"]
[{"$nulls":4},"Historical Data",{"$nulls":15},"Logistics"]
[{"$nulls":20},"Medical"]
[{"$nulls":4},"Bids/Quotes",{"$nulls":15},"Planning"]
[{"$nulls":20},"Rescue"]
[{"$nulls":4},"Costs are in Comparison w/ other TFs for Similar Tasks or Items",{"$nulls":15},"Technical "]
[{"$nulls":20},"Water "]
[{"$nulls":4},"Other","(List here):",{"$nulls":14},"N/A"]
["This narrative box has character limitations.  For additional clarification use tab 12"]
[]
[]
["Fringe Benefits",null,null,"Cost Basis: ","Please mark appropriate box(es) below. "]
["The area below is to state the total percentage (e.g., 23%) for the Fringe Benefits (if applicable) and list the items (e.g., health, dental, workers' comp) that are included.",{"$nulls":3},"Union Agreements"]
[{"$nulls":20},"Program Manager"]
[{"$nulls":20},"Task Force Representative"]
[{"$nulls":4},"City/County/Organization Negotiated Agreements",{"$nulls":15},"Grant Manager"]
[{"$nulls":20},"Administrative Specialist"]
[{"$nulls":4},"Historical Data",{"$nulls":15},"Training Manager"]
[{"$nulls":20},"Cache Manager"]
[{"$nulls":4},"Bids/Quotes",{"$nulls":15},"Logistics Manager"]
[]
[{"$nulls":4},"Costs are in Comparison w/ other TFs for Similar Tasks or Items",{"$nulls":15},"Full-Time"]
[{"$nulls":20},"Part-Time"]
[{"$nulls":4},"Other ","(List here): "]
[]
["This narrative box has character limitations.  For additional clarification use tab 12"]
[]
["Travel"]
[]
["Notes for Travel Section"]
["Attend DHS/FEMA-sponsored or DHS/FEMA-approved US&R meetings, conferences, and training sessions, to include Task Force Leader meetings, the Advisory Organization Meetings, Incident Support Team (IST) training/meetings, workshops, or others as directed by the US&R Branch as they relate to the National US&R Response System.  Other activities include on-site peer Administrative Readiness Evaluations (AREs) of other US&R Task Forces, quality assurance oversight of FEMA-sanctioned training courses, training with other Task Forces, grants management training, and research and development for equipment, as directed by the US&R Branch.  Based on approval by the US&R Branch and available funding, Task Forces can use funds to cover travel for product research and development efforts, thereby keeping apprised of cutting edge technology for equipment used within the System.    "]
[]
[]
[]
[]
["There are also miscellaneous meetings that are required due to the dynamic program.  Costs can be provided in detail or by trip costs, and a detail of the costs should be listed in the comments sections, that will show how you arrived at the trip total.  The costs listed below are estimates due to travel locations are unknown at the time of application.  It is at this time when costs are generally based on historical data. There are drop down menus for some of the meetings/training, and you can add others that are in line with the statement of work, program guidance, and directives.   This will allow you the flexibility to account for your travel costs in this section (Training) or Admin/Management categories.  The Task Force is authorized to reallocate travel funds between Admin/Management travel and Training travel without requesting a budget change authorization.  However, any changes must be reflected in your Performance Report, with an explanation on the reason(s) for the change.  "]
[]
[]
[]
[]
[]
["Travel"]
["Event Title","No. of Personnel","Cost Per Person","Lump Sum "]
[{"$nulls":3},{"$f":"SUM(B96*C96)","v":{"v":0,"d":"$0"}}]
[{"$nulls":3},{"$f":"SUM(B97*C97)","v":{"v":0,"d":"$0"}}]
[{"$nulls":3},{"v":0,"d":"$0"}]
[{"$nulls":3},{"v":0,"d":"$0"}]
[{"$nulls":3},{"v":0,"d":"$0"}]
[{"$nulls":3},{"v":0,"d":"$0"}]
[{"$nulls":3},{"v":0,"d":"$0"}]
[{"$nulls":3},{"v":0,"d":"$0"}]
[{"$nulls":3},{"v":0,"d":"$0"}]
["If other, list here",null,null,{"v":0,"d":"$0"}]
["If other, list here",null,null,{"v":0,"d":"$0"}]
["If other, list here",null,null,{"$f":"SUM(B107*C107)","v":{"v":0,"d":"$0"}}]
["If other, list here",null,null,{"$f":"SUM(B108*C108)","v":{"v":0,"d":"$0"}}]
["If other, list here",null,null,{"$f":"SUM(B109*C109)","v":{"v":0,"d":"$0"}}]
["If other, list here",null,null,{"v":0,"d":"$0"}]
["If other, list here",null,null,{"v":0,"d":"$0"}]
["If other, list here",null,null,{"v":0,"d":"$0"}]
["If other, list here",null,null,{"v":0,"d":"$0"}]
["Total",null,null,{"$f":"SUM(D96:D113)","v":{"v":0,"d":"$0"}}]
[]
["Travel",null,null,"Cost Basis: ","Please mark appropriate box(es) below. "]
["Briefly describe breakdown of travel Cost Per Person.  Provide examples of \"other authorized travel\" if selected above."]
[{"$nulls":4},"Union Agreements"]
[]
[{"$nulls":4},"City/County/Organization Negotiated Agreements"]
[]
[{"$nulls":4},"Historical Data"]
[]
[{"$nulls":4},"Bids/Quotes"]
[]
[{"$nulls":4},"Costs are in Comparison w/ other TFs for Similar Tasks or Items"]
[]
[{"$nulls":4},"Other ","(List here): "]
["This narrative box has character limitations.  For additional clarification use tab 12"]
[]
[]
["Equipment"]
[]
["Notes for Equipment Section"]
["Purchase of equipment specifically for training, to include props, training materials, training facility expenses, etc. are allowable under this Cooperative Agreement.  The costs noted in this area are for the purchase of equipment and not service agreements, which should be included under contractual or other.  Rolling or floating transportation, if allowable, will require specifications/approval as part of the application.                                                                 \n                                                                                                                                                                                                                                                                                                                                                                                                                                           The general definition of ‘‘Equipment’’ out of the CFR is:  \"Equipment\"  means an article of nonexpendable, tangible personal property having a useful life of more than one year and an acquisition cost which equals or exceeds the lesser of the capitalization level established by the governmental unit for financial statement purposes, or $5000. "]
[]
[]
[]
[]
[]
[]
["Equipment"]
["These are the items our Task Force anticipates requiring under this Cooperative Agreement for the equipment object class under the Training Program Category.  However, due to the dynamic program, the requirements for these items (within the amount approved at time of award for this object class) may change.   Any changes to listed items will be reflected in the Performance Reports, noting the reason for the change and the Task Force will not be required to submit a budget change if items are on the approved cache lists, authorized by program guidance or directives.  Rolling or floating equipment requires the specifications to be submitted to the Program Office/Grants Assistance Officer for prior approval.  "]
["Item Description","Item #","Cache #","Unit Cost","No. of Units","Total Cost"]
[{"$nulls":5},{"$f":"SUM(D145*E145)","v":{"v":0,"d":"$0"}}]
[{"$nulls":5},{"$f":"SUM(D146*E146)","v":{"v":0,"d":"$0"}}]
[{"$nulls":5},{"v":0,"d":"$0"}]
[{"$nulls":5},{"v":0,"d":"$0"}]
[{"$nulls":5},{"v":0,"d":"$0"}]
[{"$nulls":5},{"v":0,"d":"$0"}]
[{"$nulls":5},{"v":0,"d":"$0"}]
[{"$nulls":5},{"v":0,"d":"$0"}]
[{"$nulls":5},{"v":0,"d":"$0"}]
[{"$nulls":5},{"v":0,"d":"$0"}]
[{"$nulls":5},{"v":0,"d":"$0"}]
[{"$nulls":5},{"v":0,"d":"$0"}]
[{"$nulls":5},{"v":0,"d":"$0"}]
[{"$nulls":5},{"v":0,"d":"$0"}]
[{"$nulls":5},{"v":0,"d":"$0"}]
[{"$nulls":5},{"v":0,"d":"$0"}]
[{"$nulls":5},{"v":0,"d":"$0"}]
[{"$nulls":5},{"v":0,"d":"$0"}]
[{"$nulls":5},{"v":0,"d":"$0"}]
[{"$nulls":5},{"v":0,"d":"$0"}]
[{"$nulls":5},{"v":0,"d":"$0"}]
["Total",{"$nulls":4},{"$f":"ROUND(SUM(F145:F165),0)","v":{"v":0,"d":"$0"}}]
[]
["Equipment",null,null,"Cost Basis: ","Please mark appropriate box(es) below. "]
["Describe any additional supporting information for equipment costs below."]
[{"$nulls":4},"Union Agreements"]
[]
[{"$nulls":4},"City/County/Organization Negotiated Agreements"]
[]
[{"$nulls":4},"Historical Data"]
[]
[{"$nulls":4},"Bids/Quotes"]
[]
[{"$nulls":4},"Costs are in Comparison w/ other TFs for Similar Tasks or Items"]
[]
[{"$nulls":4},"Other ","(List here): "]
["This narrative box has character limitations.  For additional clarification use tab 12"]
[]
[]
["Supplies"]
[]
["Notes for Supplies Section"]
["In the area below, provide an approximate listing of the supplies necessary for preparing and/ or delivery of training within this cooperative agreement.                                                                                                                                                                       Supply items/costs that should be listed are items other then what the equipment definition states as follows:  The general definition of ‘‘Equipment’’ out of the CFR is:  \"Equipment\"  means an article of nonexpendable, tangible personal property having a useful life of more than one year and an acquisition cost which equals or exceeds the lesser of the capitalization level established by the governmental unit for financial statement purposes, or $5000."]
[]
[]
[]
[]
["Supplies "]
["These are the items our Task Force anticipates requiring under this Cooperative Agreement.  However, due to the dynamic program, the requirements for these items may change and any changes will be reflected in the Performance Reports, with the reason for the change noted.   A budget change is not required to be submitted if the costs in this category if costs remain the same and items are allowable under the Grant Guidance, current Cache List and official documentation from the US&R Branch."]
["Item","Cache #","Unit Cost","No. of Units","Total Cost"]
[{"$nulls":4},{"$f":"SUM(C195*D195)","v":{"v":0,"d":"$0"}}]
[{"$nulls":4},{"$f":"SUM(C196*D196)","v":{"v":0,"d":"$0"}}]
[{"$nulls":4},{"$f":"SUM(C197*D197)","v":{"v":0,"d":"$0"}}]
[{"$nulls":4},{"v":0,"d":"$0"}]
[{"$nulls":4},{"v":0,"d":"$0"}]
[{"$nulls":4},{"v":0,"d":"$0"}]
[{"$nulls":4},{"v":0,"d":"$0"}]
[{"$nulls":4},{"v":0,"d":"$0"}]
[{"$nulls":4},{"v":0,"d":"$0"}]
[{"$nulls":4},{"v":0,"d":"$0"}]
[{"$nulls":4},{"v":0,"d":"$0"}]
[{"$nulls":4},{"v":0,"d":"$0"}]
[{"$nulls":4},{"v":0,"d":"$0"}]
[{"$nulls":4},{"v":0,"d":"$0"}]
[{"$nulls":4},{"v":0,"d":"$0"}]
["Total",{"$nulls":3},{"$f":"SUM(E195:E209)","v":{"v":0,"d":"$0"}}]
[]
["Supplies",null,null,"Cost Basis: ","Please mark appropriate box(es) below. "]
["Describe any additional supporting information for supply costs below."]
[{"$nulls":4},"Union Agreements"]
[]
[{"$nulls":4},"City/County/Organization Negotiated Agreements"]
[]
[{"$nulls":4},"Historical Data"]
[]
[{"$nulls":4},"Bids/Quotes"]
[]
[{"$nulls":4},"Costs are in Comparison w/ other TFs for Similar Tasks or Items"]
[]
["This narrative box has character limitations.  For additional clarification use tab 12",{"$nulls":3},"Other","(List here):"]
[]
[]
[]
["Contractual"]
[]
["Notes for Contractual Section"]
["In the area below, list any supporting information for the contractual costs of services, rentals, etc., as it pertains to training.   "]
[]
[]
[]
["Contractual"]
["Service",null,"Quantity","Unit Cost","Total Cost"]
[{"$nulls":4},{"$f":"SUM(C237*D237)","v":{"v":0,"d":"$0"}}]
[{"$nulls":4},{"$f":"SUM(C238*D238)","v":{"v":0,"d":"$0"}}]
[{"$nulls":4},{"v":0,"d":"$0"}]
[{"$nulls":4},{"v":0,"d":"$0"}]
[{"$nulls":4},{"v":0,"d":"$0"}]
[{"$nulls":4},{"v":0,"d":"$0"}]
[{"$nulls":4},{"v":0,"d":"$0"}]
[{"$nulls":4},{"v":0,"d":"$0"}]
[{"$nulls":4},{"v":0,"d":"$0"}]
[{"$nulls":4},{"v":0,"d":"$0"}]
[{"$nulls":4},{"v":0,"d":"$0"}]
[{"$nulls":4},{"v":0,"d":"$0"}]
[{"$nulls":4},{"v":0,"d":"$0"}]
[{"$nulls":4},{"v":0,"d":"$0"}]
[{"$nulls":4},{"v":0,"d":"$0"}]
[{"$nulls":4},{"v":0,"d":"$0"}]
[{"$nulls":4},{"v":0,"d":"$0"}]
["Total",{"$nulls":3},{"$f":"SUM(E237:E253)","v":{"v":0,"d":"$0"}}]
[]
["Contractual",null,null,"Cost Basis: ","Please mark appropriate box(es) below. "]
["Describe any additional supporting information for contractual costs below."]
[{"$nulls":4},"Union Agreements"]
[]
[{"$nulls":4},"City/County/Organization Negotiated Agreements"]
[]
[{"$nulls":4},"Historical Data"]
[]
[{"$nulls":4},"Bids/Quotes"]
[]
[{"$nulls":4},"Costs are in Comparison w/ other TFs for Similar Tasks or Items"]
[]
["This narrative box has character limitations.  For additional clarification use tab 12",{"$nulls":3},"Other  ","(List here):"]
[]
[]
[]
["Other"]
[]
["Notes for Other Section"]
["This area will cover any miscellaneous items that are are training-related and allowable under the Statement of Work but not covered in the other object classes. "]
[]
[]
["Other (If Applicable)"]
["Item",null,"Quantity","Unit Cost","Total Cost"]
[{"$nulls":4},{"$f":"SUM(C280*D280)","v":{"v":0,"d":"$0"}}]
[{"$nulls":4},{"v":0,"d":"$0"}]
[{"$nulls":4},{"v":0,"d":"$0"}]
[{"$nulls":4},{"v":0,"d":"$0"}]
[{"$nulls":4},{"v":0,"d":"$0"}]
[{"$nulls":4},{"v":0,"d":"$0"}]
["Total",{"$nulls":3},{"$f":"SUM(E280:E285)","v":{"v":0,"d":"$0"}}]
[]
["Other",null,null,"Cost Basis: ","Please mark appropriate box(es) below. "]
["Describe any additional supporting information for other costs below."]
[{"$nulls":4},"Union Agreements"]
[]
[{"$nulls":4},"City/County/Organization Negotiated Agreements"]
[]
[{"$nulls":4},"Historical Data"]
[]
[{"$nulls":4},"Bids/Quotes"]
[]
[{"$nulls":4},"Costs are in Comparison w/ other TFs for Similar Tasks or Items"]
[]
["This narrative box has character limitations.  For additional clarification use tab 12",{"$nulls":3},"Other  ","(List here):"]
[]
[]
[]
["Indirect Costs"]
[]
["Notes for Indirect Costs Section"]
["Indirect Costs can only be provided if there is an Indirect Cost Rate Agreement that has been approved by a cognizant Federal Agency.  A copy of the Indirect Cost Rate Agreement should accompany  the application.   The Indirect Cost Rate Agreement that you provide should state what category or categories  the Indirect Costs are based on, ie equipment, salaries, all expenses,  etc.   The information provided below should list the description of the cost category for the base, the amount on which it's based, the percentage, and the total.  The rate or amount approved at time of award will prevail thru the term of the Cooperative Agreement."]
[]
[]
[]
[]
["Indirect Costs "]
["Item/Category","Item Description",null,"Base Amount","Percentage","Total Cost"]
[]
[]
[]
[]
[]
[]
["Total",{"$nulls":4},{"$f":"SUM(F314:F319)","v":{"v":0,"d":"$0"}}]
[]
["Indirect Costs",null,null,"Cost Basis: ","Please mark appropriate box(es) below. "]
["Describe any additional supporting information for indirect costs below.  Please advise who is the Cognizant Federal Agency and the date of approval."]
[{"$nulls":4},"Union Agreements"]
[]
[{"$nulls":4},"City/County/Organization Negotiated Agreements"]
[]
[{"$nulls":4},"Historical Data"]
[]
[{"$nulls":4},"Bids/Quotes"]
[]
[{"$nulls":4},"Costs are in Comparison w/ other TFs for Similar Tasks or Items"]
[]
[{"$nulls":4},"Other ","(List Here):"]
["This narrative box has character limitations.  For additional clarification use tab 12"]

{"sheet":"8-Equipment","index":8,"n_rows":329,"n_cols":22,"rows_kept":329,"merged":[[0,0,0,7],[1,0,1,7],[2,0,2,7],[3,0,7,7],[8,0,11,7],[12,0,12,7],[17,0,17,7],[19,0,19,7],[20,0,23,7],[25,0,25,1],[45,0,46,2],[47,0,57,2],[56,5,58,7],[58,0,58,2],[61,0,63,2],[64,0,73,2],[72,5,74,7],[74,0,74,2],[76,0,76,7],[78,0,78,7],[79,0,83,7],[83,8,90,15],[83,16,90,23],[83,24,90,31],[83,32,90,39],[83,40,90,47],[83,48,90,55],[83,56,90,63],[83,64,90,71],[83,72,90,79],[83,80,90,87],[83,88,90,95],[83,96,90,103],[83,104,90,111],[83,112,90,119],[83,120,90,127],[83,128,90,135],[83,136,90,143],[83,144,90,151],[83,152,90,159],[83,160,90,167],[83,168,90,175],[83,176,90,183],[83,184,90,191],[83,192,90,199],[83,200,90,207],[83,208,90,215],[83,216,90,223],[83,224,90,231],[83,232,90,239],[83,240,90,247],[83,248,90,255],[84,0,84,4],[85,0,85,2],[105,0,106,2],[107,0,117,2],[116,5,118,7],[118,0,118,2],[120,0,120,7],[121,0,121,7],[122,0,126,7],[127,0,131,7],[134,0,134,7],[145,8,145,15],[145,16,145,23],[145,24,145,31],[145,32,145,39],[145,40,145,47],[145,48,145,55],[145,56,145,63],[145,64,145,71],[145,72,145,79],[145,80,145,87],[145,88,145,95],[145,96,145,103],[145,104,145,111],[145,112,145,119],[145,120,145,127],[145,128,145,135],[145,136,145,143],[145,144,145,151],[145,152,145,159],[145,160,145,167],[145,168,145,175],[145,176,145,183],[145,184,145,191],[145,192,145,199],[145,200,145,207],[145,208,145,215],[145,216,145,223],[145,224,145,231],[145,232,145,239],[145,240,145,247],[145,248,145,255],[146,8,159,15],[146,16,159,23],[146,24,159,31],[146,32,159,39],[146,40,159,47],[146,48,159,55],[146,56,159,63],[146,64,159,71],[146,72,159,79],[146,80,159,87],[146,88,159,95],[146,96,159,103],[146,104,159,111],[146,112,159,119],[146,120,159,127],[146,128,159,135],[146,136,159,143],[146,144,159,151],[146,152,159,159],[146,160,159,167],[146,168,159,175],[146,176,159,183],[146,184,159,191],[146,192,159,199],[146,200,159,207],[146,208,159,215],[146,216,159,223],[146,224,159,231],[146,232,159,239],[146,240,159,247],[146,248,159,255],[160,0,161,2],[162,0,172,2],[171,5,173,7],[172,8,172,15],[172,16,172,23],[172,24,172,31],[172,32,172,39],[172,40,172,47],[172,48,172,55],[172,56,172,63],[172,64,172,71],[172,72,172,79],[172,80,172,87],[172,88,172,95],[172,96,172,103],[172,104,172,111],[172,112,172,119],[172,120,172,127],[172,128,172,135],[172,136,172,143],[172,144,172,151],[172,152,172,159],[172,160,172,167],[172,168,172,175],[172,176,172,183],[172,184,172,191],[172,192,172,199],[172,200,172,207],[172,208,172,215],[172,216,172,223],[172,224,172,231],[172,232,172,239],[172,240,172,247],[172,248,172,255],[173,0,173,2],[175,0,175,7],[177,0,177,7],[178,0,182,7],[186,0,186,7],[203,0,203,2],[206,0,207,2],[208,0,218,2],[217,5,219,7],[219,0,219,2],[221,0,221,7],[223,0,223,7],[224,0,225,7],[229,0,229,1],[230,0,230,1],[231,0,231,1],[232,0,232,1],[233,0,233,1],[234,0,234,1],[235,0,235,1],[236,0,236,1],[237,0,237,1],[238,0,238,1],[239,0,239,1],[240,0,240,1],[241,0,241,1],[242,0,242,1],[243,0,243,1],[244,0,244,1],[245,0,245,1],[247,0,247,1],[249,0,250,2],[251,0,261,2],[260,5,262,7],[262,0,262,2],[264,0,264,7],[266,0,266,7],[267,0,268,7],[270,0,270,2],[272,0,272,1],[273,0,273,1],[274,0,274,1],[275,0,275,1],[276,0,276,1],[277,0,277,1],[278,0,278,1],[281,0,281,2],[282,0,293,2],[292,5,294,7],[294,0,294,2],[296,0,296,7],[298,0,298,7],[299,0,302,7],[305,1,305,2],[306,1,306,2],[307,1,307,2],[308,1,308,2],[309,1,309,2],[310,1,310,2],[311,1,311,2],[315,0,317,2],[318,0,327,2],[326,5,328,7],[328,0,328,2]]}
["EQUIPMENT"]
["FEMA Form 089-0-10E"]
["Task Force General Comments"]
["This Program Category covers the costs for the equipment portion of the Readiness Cooperative Agreement for our Task Force.  The period of performance covers a 36 month period to accomplish the work in this area.  Our Task Force intends to maintain a deployable Task Force and will provide the required equipment to insure mission readiness, safety, and management of the Task Force.  The equipment will be purchased in accordance with the requirements of the Urban Search & Rescue Branch statement of work, current cache list, and official guidance from the US&R Branch. The equipment and supporting cost details will be provided in the below object classes under this Program Category.  Our Task Force will attempt to maintain the preparedness of the Task Force under this Readiness Cooperative Agreement, in order to provide critical emergency response services as one of the 28 teams for the National Urban Search and Rescue Response System.  ",{"$nulls":19},"Staff Positions"]
[{"$nulls":20},"Administrative Specialist "]
[{"$nulls":20},"Financial Grants Manager"]
[{"$nulls":20},"Grant Manager"]
[]
["The below list of equipment and costs covers what is anticipated for this Readiness Cooperative Agreement.  Due to the dynamic program, training scheduling and requirement changes, some of the equipment listed may require revisions.  Any changes will be noted within the Performance Reports, and will include the change and the reason for the change.  It will not require a budget adjustment as long as the change is within the Program Category total as noted at time of award, and is an approved equipment requirement within the statement of work, current cache list, and official guidance from the US&R Branch."]
[{"$nulls":20},"Logistics Coordinator "]
[{"$nulls":20},"Logistics Manager"]
[{"$nulls":20},"Program Manager"]
[{"$nulls":20},"Training Coordinator"]
[{"$nulls":20},"Training Manager "]
["Total Equipment Cost"]
[{"$f":"SUM(G43,E103,F158,E204,E247,E279,F313)","v":{"v":0,"d":"$0"}},{"$nulls":19},"Full-Time"]
[{"$nulls":20},"Part-Time"]
["Personnel Salaries & Fringe Benefits"]
[{"$nulls":20}," Functional Training Courses:","All Courses/Meetings"]
["Notes for Personnel Salaries and Fringe Benefits Section",{"$nulls":19},"Canine Search Specialist ","Canine Search Specialist "]
["The Task Force can use this category to account for the salaries of Task Force Members who perform duties related to maintenance of  US&R equipment and vehicles.   This may also include backfill expenses for individual(s) who are working with the cache.  If specific costs are unknown, give estimated salary hours and average salary rate.  If specific dates are unknown, provide estimated time frame (e.g., 1 day per week/month, etc.).  If overtime hours are listed, please note them as a separate item below.  Put the total amount under salary.  Note the hourly rate in the clarification box.",{"$nulls":19},"Communications Specialist ","Communications Specialist "]
[{"$nulls":20},"Heavy Equipment & Rigging Specialist ","Grants Manager Training"]
[{"$nulls":20},"Incident Support Team ","Haz Mat Specialist"]
[{"$nulls":20},"Technical Search Specialist","Heavy Equipment & Rigging Specialist "]
[{"$nulls":21},"Logistics Specialist"]
["Personnel Salaries and Fringe Benefits",{"$nulls":19},"National Meetings:","Medical Specialist"]
["Staff Position","Full/Part Time","Overtime Hours","Date Salary Charged ","Fringe Benefits (If Applicable)","Salary","Totals",{"$nulls":13},"On-Site Peer Evaluation ","Operations Group Meeting "]
[{"$nulls":6},{"$f":"SUM(E28:F28)","v":{"v":0,"d":"$0"}},{"$nulls":13},"Operations Group Meeting ","Operations Group Meeting "]
[{"$nulls":6},{"v":0,"d":"$0"},{"$nulls":13},"Task Force Leaders’ Meeting ","Planning Specialist"]
[{"$nulls":6},{"v":0,"d":"$0"},{"$nulls":13},"Working Group Meetings","Safety Officer"]
[{"$nulls":6},{"v":0,"d":"$0"},{"$nulls":14},"Structural Collapse Technician"]
[{"$nulls":6},{"v":0,"d":"$0"},{"$nulls":14},"Task Force Leader"]
[{"$nulls":6},{"v":0,"d":"$0"},{"$nulls":13},"Add'l Notes","Task Force Leaders’ Meeting "]
[{"$nulls":6},{"v":0,"d":"$0"},{"$nulls":13},"Task Force Leaders’ Meeting (usually planned adjacent to Ops Group Meeting)","Task Force Safety Officer"]
[{"$nulls":6},{"v":0,"d":"$0"},{"$nulls":13},"On-Site Peer Evaluation (Peer Evaluators)","Technical Information Specialist"]
[{"$nulls":6},{"v":0,"d":"$0"},{"$nulls":13},"(Events take place in different locations)","Technical Search Specialist"]
[{"$nulls":6},{"v":0,"d":"$0"},{"$nulls":14},"Working Group Meetings"]
[{"$nulls":6},{"v":0,"d":"$0"},{"$nulls":13},"Cost Basis ","Other Authorized Travel"]
[{"$nulls":6},{"$f":"SUM(E39:F39)","v":{"v":0,"d":"$0"}},{"$nulls":13},"Union Agreements"]
[{"$nulls":6},{"v":0,"d":"$0"},{"$nulls":13},"City/County/Organization Negotiated Agreements"]
[{"$nulls":6},{"v":0,"d":"$0"},{"$nulls":13},"Historical Data"]
[{"$nulls":6},{"v":0,"d":"$0"},{"$nulls":13},"Bids/Quotes"]
["Totals",{"$nulls":3},{"$f":"SUM(E28:E42)","v":{"v":0,"d":"$0"}},{"$f":"ROUND(SUM(F28:F42),0)","v":{"v":0,"d":"$0"}},{"$f":"ROUND(SUM(G28:G42),0)","v":{"v":0,"d":"$0"}},{"$nulls":13},"Costs are in Comparison with other TFs for Similar Tasks or Items"]
[{"$nulls":20},"Other "]
["Personnel Salaries",null,null,"Cost Basis: ","Please mark appropriate box(es) below. "]
["The area below is to provide additional notes the Task Force may need to add for clarifying the range of salary rates used to develop the average hourly costs.",{"$nulls":19},"Cache List"]
[{"$nulls":4},"Union Agreements",{"$nulls":15},"Communications"]
[{"$nulls":20},"Haz Mat/WMD"]
[{"$nulls":4},"City/County/Organization Negotiated Agreements",{"$nulls":15},"Logistics"]
[{"$nulls":20},"Medical"]
[{"$nulls":4},"Historical Data",{"$nulls":15},"Planning"]
[{"$nulls":20},"Rescue"]
[{"$nulls":4},"Bids/Quotes",{"$nulls":15},"Technical "]
[{"$nulls":20},"Water "]
[{"$nulls":4},"Costs are in Comparison w/ other TFs for Similar Tasks or Items",{"$nulls":15},"N/A"]
[]
[{"$nulls":4},"Other ","(List here): "]
[]
["This narrative box has character limitations.  For additional clarification use tab 12"]
[]
["Fringe Benefits (If Applicable)",null,null,"Cost Basis: ","Please mark appropriate box(es) below. "]
["The area below is to state the total percentage (e.g., 23%) for the Fringe Benefits (if applicable) and list the items (e.g., health, dental, workers' comp) that are included.  "]
[{"$nulls":4},"Union Agreements"]
[]
[{"$nulls":4},"City/County/Organization Negotiated Agreements"]
[]
[{"$nulls":4},"Historical Data"]
[]
[{"$nulls":4},"Bids/Quotes"]
[]
[{"$nulls":4},"Costs are in Comparison w/ other TFs for Similar Tasks or Items"]
[]
[{"$nulls":4},"Other ","(List here):"]
[]
["This narrative box has character limitations.  For additional clarification use tab 12"]
[]
["Travel"]
[]
["Notes for Travel Section"]
["Travel in this category would cover costs relating to quality assurance on equipment or vehicle, or any other travel related to cache management within the scope of the Grant Guidance.  Please note: These expenses can be reflected within the Administrative/Management or Training travel category instead.  Costs can be provided in detail or by trip costs, and a detail of the costs should be listed in the comments sections, that will show how you arrived at the trip total.  The costs listed below are estimates due to travel locations that are unknown at the time of application.  It is at this time when costs are generally based on historical data. There are drop down menus for some of the meetings, and you can add others that are in line within the Statement of Work.  "]
[]
[]
[]
[]
[]
["Travel (If Applicable)"]
["Event Title","No. of Personnel","Cost Per Person","No. of Trips (approx.)","Total Cost"]
[{"$nulls":4},{"$f":"B88*C88*D88","v":{"v":0,"d":"$0"}}]
[{"$nulls":4},{"$f":"B89*C89*D89","v":{"v":0,"d":"$0"}}]
[{"$nulls":4},{"v":0,"d":"$0"}]
[{"$nulls":4},{"v":0,"d":"$0"}]
[{"$nulls":4},{"v":0,"d":"$0"}]
[{"$nulls":4},{"v":0,"d":"$0"}]
[{"$nulls":4},{"v":0,"d":"$0"}]
[{"$nulls":4},{"v":0,"d":"$0"}]
[{"$nulls":4},{"v":0,"d":"$0"}]
["If other, list here",{"$nulls":3},{"v":0,"d":"$0"}]
["If other, list here",{"$nulls":3},{"v":0,"d":"$0"}]
["If other, list here",{"$nulls":3},{"v":0,"d":"$0"}]
["If other, list here",{"$nulls":3},{"v":0,"d":"$0"}]
["If other, list here",{"$nulls":3},{"v":0,"d":"$0"}]
["If other, list here",{"$nulls":3},{"v":0,"d":"$0"}]
["Total",{"$nulls":3},{"$f":"SUM(E88:E102)","v":{"v":0,"d":"$0"}}]
[]
["Travel",null,null,"Cost Basis: ","Please mark appropriate box(es) below. "]
["Briefly describe breakdown of travel Cost Per Person.  Provide examples of \"other authorized travel\" if selected above."]
[{"$nulls":4},"Union Agreements"]
[]
[{"$nulls":4},"City/County/Organization Negotiated Agreements"]
[]
[{"$nulls":4},"Historical Data"]
[]
[{"$nulls":4},"Bids/Quotes"]
[]
[{"$nulls":4},"Costs are in Comparison w/ other TFs for Similar Tasks or Items"]
[]
[{"$nulls":4},"Other","(List here): "]
[]
["This narrative box has character limitations.  For additional clarification use tab 12"]
[]
["Equipment"]
["Notes for Equipment Section"]
["Your agency is authorized to purchase equipment as listed in the approved DHS/FEMA 2015 US&R Task Force Equipment Cache List, or any subsequently approved DHS/FEMA US&R Equipment list.  Task Force personnel are reminded and directed not to exceed quantity and/or cost caps as listed on the cache list.  Task Force must follow department procurement regulations, which are in accordance with 2 CFR Part 200 to ensure reasonable prices are obtained.  The US&R Program Office and the Grants Office Assistance Officer must provide written approval for any other equipment not identified on approved cache list(s), in program guidance, or specifications.  Those Task Forces who maintain an IST Medical Cache are to include the appropriate amount below for replacement of equipment and pharmaceuticals.  "]
[]
[]
[]
[]
["However, due to the dynamic program, the requirements for these items (within the amount approved at time of award for this object class) may change.   Any changes to listed items will be reflected in the Performance Reports, noting the reason for the change and the Task Force will not be required to submit a budget change if items are on the approved cache lists, noted in the statement of work, or authorized by program guidance or directives.  Rolling or floating equipment requires the specifications to be submitted to the US&R Branch/Grants Assistance Officer for prior approval.  The general definition of ‘‘Equipment’’ out of the CFR is:  \"Equipment\"  means an article of nonexpendable, tangible personal property having a useful life of more than one year and an acquisition cost which equals or exceeds the lesser of the capitalization level established by the governmental unit for financial statement purposes, or $5000. "]
[]
[]
[]
[]
[]
["Equipment"]
["These are the items our Task Force anticipates requiring for this Cooperative Agreement under the equipment object class within the Equipment Program Category.  However, due to the dynamic program, the requirements for these items (within the amount approved at time of award for this object class) may change.   Any changes to listed items will be reflected in the Performance Reports, noting the reason for the change and the Task Force will not be required to submit a budget change if items are on the approved cache lists, authorized by program guidance or directives.  Rolling or floating equipment requires the specifications and budget information to be submitted to the Program Office/Grants Assistance Officer for prior approval.  "]
["Item Description","Item #","Cache #","Unit Cost","No. of Units","Total Cost"]
[{"$nulls":5},{"$f":"D137*E137","v":{"v":0,"d":"$0"}}]
[{"$nulls":5},{"$f":"D138*E138","v":{"v":0,"d":"$0"}}]
[{"$nulls":5},{"v":0,"d":"$0"}]
[{"$nulls":5},{"v":0,"d":"$0"}]
[{"$nulls":5},{"v":0,"d":"$0"}]
[{"$nulls":5},{"v":0,"d":"$0"}]
[{"$nulls":5},{"v":0,"d":"$0"}]
[{"$nulls":5},{"v":0,"d":"$0"}]
[{"$nulls":5},{"v":0,"d":"$0"}]
[{"$nulls":5},{"v":0,"d":"$0"}]
[{"$nulls":5},{"v":0,"d":"$0"}]
[{"$nulls":5},{"v":0,"d":"$0"}]
[{"$nulls":5},{"v":0,"d":"$0"}]
[{"$nulls":5},{"v":0,"d":"$0"}]
[{"$nulls":5},{"v":0,"d":"$0"}]
[{"$nulls":5},{"v":0,"d":"$0"}]
[{"$nulls":5},{"v":0,"d":"$0"}]
[{"$nulls":5},{"v":0,"d":"$0"}]
[{"$nulls":5},{"v":0,"d":"$0"}]
[{"$nulls":5},{"v":0,"d":"$0"}]
[{"$nulls":5},{"v":0,"d":"$0"}]
["Total",{"$nulls":4},{"$f":"SUM(F137:F157)","v":{"v":0,"d":"$0"}}]
[]
["Equipment",null,null,"Cost Basis: ","Please mark appropriate box(es) below. "]
["Describe any additional supporting information for equipment costs below."]
[{"$nulls":4},"Union Agreements"]
[]
[{"$nulls":4},"City/County/Organization Negotiated Agreements"]
[]
[{"$nulls":4},"Historical Data"]
[]
[{"$nulls":4},"Bids/Quotes"]
[]
[{"$nulls":4},"Costs are in Comparison w/ other TFs for Similar Tasks or Items"]
[]
[{"$nulls":4},"Other ","(List here): "]
[]
["This narrative box has character limitations.  For additional clarification use tab 12"]
[]
["Supplies"]
[]
["Notes for Supplies Section"]
["In the area below, provide an approximate listing of necessary supplies.  Supply items/costs that should be listed are items other then what the equipment definition states as follows:  The general definition of ‘‘Equipment’’ out of the CFR is:  \"Equipment\"  means an article of nonexpendable, tangible personal property having a useful life of more than one year and an acquisition cost which equals or exceeds the lesser of the capitalization level established by the governmental unit for financial statement purposes, or $5000.   However, due to the dynamic program, the requirements for these items (within the amount approved at time of award for this object class) may change.   Any changes to the listed items will be reflected in the Performance Reports, including the reason for the change(s) noted."]
[]
[]
[]
[]
[]
[]
["Supplies "]
["These are the items our Task Force anticipates requiring under this Cooperative Agreement.  However, due to the dynamic program, the requirements for these items may change and any changes will be reflected in the Performance Reports, with the reason for the change noted.   A budget change is not required to be submitted for approval if the costs in this object class remain as approved at time of award and the items are allowable in accordance with the statement of work, program guidance and directives."]
["Item","Cache #","Unit Cost","No. of Units","Total Cost"]
[{"$nulls":4},{"$f":"SUM(C189*D189)","v":{"v":0,"d":"$0"}}]
[{"$nulls":4},{"$f":"C190*D190","v":{"v":0,"d":"$0"}}]
[{"$nulls":4},{"v":0,"d":"$0"}]
[{"$nulls":4},{"v":0,"d":"$0"}]
[{"$nulls":4},{"v":0,"d":"$0"}]
[{"$nulls":4},{"v":0,"d":"$0"}]
[{"$nulls":4},{"v":0,"d":"$0"}]
[{"$nulls":4},{"v":0,"d":"$0"}]
[{"$nulls":4},{"v":0,"d":"$0"}]
[{"$nulls":4},{"v":0,"d":"$0"}]
[{"$nulls":4},{"v":0,"d":"$0"}]
[{"$nulls":4},{"v":0,"d":"$0"}]
[{"$nulls":4},{"v":0,"d":"$0"}]
[{"$nulls":4},{"v":0,"d":"$0"}]
[{"$nulls":4},{"v":0,"d":"$0"}]
["Total",{"$nulls":3},{"$f":"SUM(E189:E203)","v":{"v":0,"d":"$0"}}]
[]
["Supplies",null,null,"Cost Basis: ","Please mark appropriate box(es) below. "]
["Describe any additional supporting information for supply costs below."]
[{"$nulls":4},"Union Agreements"]
[]
[{"$nulls":4},"City/County/Organization Negotiated Agreements"]
[]
[{"$nulls":4},"Historical Data"]
[]
[{"$nulls":4},"Bids/Quotes"]
[]
[{"$nulls":4},"Costs are in Comparison w/ other TFs for Similar Tasks or Items"]
[]
[{"$nulls":4},"Other","(List here): "]
[]
["This narrative box has character limitations.  For additional clarification use tab 12"]
[]
["Contractual"]
[]
["Notes for Contractual Section"]
["In the area below, list any supporting information for the contractual costs of services, rentals, etc., for equipment."]
[]
[]
["Contractual"]
["Service",null,"Quantity","Unit Cost","Total Cost"]
[{"$nulls":4},{"$f":"C230*D230","v":{"v":0,"d":"$0"}}]
[{"$nulls":4},{"$f":"C231*D231","v":{"v":0,"d":"$0"}}]
[{"$nulls":4},{"v":0,"d":"$0"}]
[{"$nulls":4},{"v":0,"d":"$0"}]
[{"$nulls":4},{"v":0,"d":"$0"}]
[{"$nulls":4},{"v":0,"d":"$0"}]
[{"$nulls":4},{"v":0,"d":"$0"}]
[{"$nulls":4},{"v":0,"d":"$0"}]
[{"$nulls":4},{"v":0,"d":"$0"}]
[{"$nulls":4},{"v":0,"d":"$0"}]
[{"$nulls":4},{"v":0,"d":"$0"}]
[{"$nulls":4},{"v":0,"d":"$0"}]
[{"$nulls":4},{"v":0,"d":"$0"}]
[{"$nulls":4},{"v":0,"d":"$0"}]
[{"$nulls":4},{"v":0,"d":"$0"}]
[{"$nulls":4},{"v":0,"d":"$0"}]
[{"$nulls":4},{"v":0,"d":"$0"}]
["Total",{"$nulls":3},{"$f":"SUM(E230:E246)","v":{"v":0,"d":"$0"}}]
[]
["Contractual",null,null,"Cost Basis: ","Please mark appropriate box(es) below. "]
["Describe any additional supporting information for contractual costs below."]
[{"$nulls":4},"Union Agreements"]
[]
[{"$nulls":4},"City/County/Organization Negotiated Agreements"]
[]
[{"$nulls":4},"Historical Data"]
[]
[{"$nulls":4},"Bids/Quotes"]
[]
[{"$nulls":4},"Costs are in Comparison w/ other TFs for Similar Tasks or Items"]
[]
[{"$nulls":4},"Other","(List here): "]
[]
["This narrative box has character limitations.  For additional clarification use tab 12"]
[]
["Other"]
[]
["Notes for Other Section"]
["This area will cover any miscellaneous items that are are equipment-related and allowable under the Statement of Work but not covered in the other object classes. "]
[]
[]
["Other "]
["Item",null,"Quantity","Unit Cost","Total Cost"]
[null,null,0,{"v":0,"d":"$0"},{"$f":"C273*D273","v":{"v":0,"d":"$0"}}]
[{"$nulls":4},{"v":0,"d":"$0"}]
[{"$nulls":4},{"v":0,"d":"$0"}]
[{"$nulls":4},{"v":0,"d":"$0"}]
[{"$nulls":4},{"v":0,"d":"$0"}]
[{"$nulls":4},{"v":0,"d":"$0"}]
["Total",{"$nulls":3},{"$f":"SUM(E273:E278)","v":{"v":0,"d":"$0"}}]
[]
["Other",null,null,"Cost Basis: ","Please mark appropriate box(es) below. "]
["Describe any additional supporting information for other costs below."]
[{"$nulls":4},"Union Agreements"]
[]
[{"$nulls":4},"City/County/Organization Negotiated Agreements"]
[]
[{"$nulls":4},"Historical Data"]
[]
[{"$nulls":4},"Bids/Quotes"]
[]
[{"$nulls":4},"Costs are in Comparison w/ other TFs for Similar Tasks or Items"]
[]
[{"$nulls":4},"Other","(List here): "]
[]
["This narrative box has character limitations.  For additional clarification use tab 12"]
[]
["Indirect Costs"]
[]
["Notes for Indirect Costs Section"]
["Indirect Costs can only be provided if there is an Indirect Cost Rate Agreement that has been approved by a cognizant Federal Agency.  A copy of the Indirect Cost Rate Agreement should accompany  the application.   The Indirect Cost Rate Agreement that you provide should state what category or categories  the Indirect Costs are based on, i.e., equipment, salaries, all expenses,  etc.   The information provided below should list the description of the cost category for the base, the amount on which it's based, the percentage, and the total.  The rate or amount approved at time of award will prevail thru the term of the Cooperative Agreement."]
[]
[]
[]
[]
["Indirect Costs "]
["Item/Category","Item Description",null,"Base Amount","Percentage","Total Cost"]
[]
[]
[]
[]
[]
[]
["Total",{"$nulls":4},{"$f":"SUM(F307:F312)","v":{"v":0,"d":"$0"}}]
[]
["Indirect Costs",null,null,"Cost Basis: ","Please mark appropriate box(es) below. "]
["Describe any additional supporting information for indirect costs below.  Please advise who is the Cognizant Federal Agency and the date of approval."]
[{"$nulls":4},"Union Agreements"]
[]
[{"$nulls":4},"City/County/Organization Negotiated Agreements"]
[]
[{"$nulls":4},"Historical Data"]
[]
[{"$nulls":4},"Bids/Quotes"]
[]
[{"$nulls":4},"Costs are in Comparison w/ other TFs for Similar Tasks or Items"]
[]
[{"$nulls":4},"Other ","(List here): "]
[]
["This narrative box has character limitations.  For additional clarification use tab 12"]

{"sheet":"9-Storage & Maintenance","index":9,"n_rows":325,"n_cols":21,"rows_kept":325,"merged":[[0,0,0,6],[1,0,1,6],[3,0,6,6],[7,0,9,6],[10,0,10,6],[15,0,15,6],[17,0,17,6],[18,0,21,6],[23,0,23,1],[43,0,44,2],[45,0,54,2],[54,5,56,6],[55,0,55,2],[56,0,56,2],[59,0,61,2],[62,0,71,2],[70,5,72,6],[72,0,72,2],[74,0,74,6],[76,0,76,6],[77,0,81,6],[83,0,83,2],[103,0,104,2],[105,0,114,2],[114,5,116,6],[115,0,116,2],[118,0,118,6],[120,0,120,6],[121,0,126,6],[144,15,144,22],[144,23,144,30],[144,31,144,38],[144,39,144,46],[144,47,144,54],[144,55,144,62],[144,63,144,70],[144,71,144,78],[144,79,144,86],[144,87,144,94],[144,95,144,102],[144,103,144,110],[144,111,144,118],[144,119,144,126],[144,127,144,134],[144,135,144,142],[144,143,144,150],[144,151,144,158],[144,159,144,166],[144,167,144,174],[144,175,144,182],[144,183,144,190],[144,191,144,198],[144,199,144,206],[144,207,144,214],[144,215,144,222],[144,223,144,230],[144,231,144,238],[144,239,144,246],[144,247,144,254],[145,15,158,22],[145,23,158,30],[145,31,158,38],[145,39,158,46],[145,47,158,54],[145,55,158,62],[145,63,158,70],[145,71,158,78],[145,79,158,86],[145,87,158,94],[145,95,158,102],[145,103,158,110],[145,111,158,118],[145,119,158,126],[145,127,158,134],[145,135,158,142],[145,143,158,150],[145,151,158,158],[145,159,158,166],[145,167,158,174],[145,175,158,182],[145,183,158,190],[145,191,158,198],[145,199,158,206],[145,207,158,214],[145,215,158,222],[145,223,158,230],[145,231,158,238],[145,239,158,246],[145,247,158,254],[154,0,155,2],[156,0,165,2],[165,5,167,6],[166,0,167,2],[169,0,169,6],[171,0,171,6],[171,14,171,21],[171,22,171,29],[171,30,171,37],[171,38,171,45],[171,46,171,53],[171,54,171,61],[171,62,171,69],[171,70,171,77],[171,78,171,85],[171,86,171,93],[171,94,171,101],[171,102,171,109],[171,110,171,117],[171,118,171,125],[171,126,171,133],[171,134,171,141],[171,142,171,149],[171,150,171,157],[171,158,171,165],[171,166,171,173],[171,174,171,181],[171,182,171,189],[171,190,171,197],[171,198,171,205],[171,206,171,213],[171,214,171,221],[171,222,171,229],[171,230,171,237],[171,238,171,245],[171,246,171,253],[172,0,175,6],[172,14,175,21],[172,22,175,29],[172,30,175,37],[172,38,175,45],[172,46,175,53],[172,54,175,61],[172,62,175,69],[172,70,175,77],[172,78,175,85],[172,86,175,93],[172,94,175,101],[172,102,175,109],[172,110,175,117],[172,118,175,125],[172,126,175,133],[172,134,175,141],[172,142,175,149],[172,150,175,157],[172,158,175,165],[172,166,175,173],[172,174,175,181],[172,182,175,189],[172,190,175,197],[172,198,175,205],[172,206,175,213],[172,214,175,221],[172,222,175,229],[172,230,175,237],[172,238,175,245],[172,246,175,253],[194,0,194,2],[197,0,198,2],[199,0,207,2],[208,0,210,2],[208,5,210,6],[212,0,212,6],[214,0,214,6],[215,0,219,6],[243,0,244,2],[245,0,254,2],[254,5,256,6],[255,0,256,2],[258,0,258,6],[260,0,260,6],[261,0,263,6],[265,0,265,2],[267,0,267,1],[268,0,268,1],[269,0,269,1],[270,0,270,1],[271,0,271,1],[272,0,272,1],[273,0,273,1],[276,0,277,2],[278,0,287,2],[287,5,289,6],[288,0,289,2],[292,0,292,6],[294,0,294,6],[295,0,298,6],[301,1,301,2],[302,1,302,2],[303,1,303,2],[304,1,304,2],[305,1,305,2],[306,1,306,2],[307,1,307,2],[311,0,313,2],[314,0,323,2],[322,5,324,6],[324,0,324,2]]}
["STORAGE & MAINTENANCE"]
["FEMA Form 089-0-10F"]
["Task Force General Comments"]
["This Program Category covers the costs for the storage/maintenance portion of this Readiness Cooperative Agreement.  The costs for the Storage/Maintenance portion of this budget/narrative will be addressed in this section for any warehouse lease or maintenance costs for the equipment/vehicles, and the costs will occur within the 36 month period of performance. Task force management is reminded you may only use cooperative agreement funds to pay for warehouse leases for a twelve-month consecutive period within the overall period of performance and that there is no guarantee of cooperative agreement funding in future years (See Statement of Work, Section F, Cooperative Agreement Funding at pages 21-22).  Task forces may write contracts with an available fund’s clause or option years for protection. The storage and maintenance will be in accordance with the requirements of the Urban Search & Rescue Branch statement of work, program guidance, and directives. The supporting cost details will be provided in the below object classes under this Program Category."]
[]
[]
[]
["Our Task Force will attempt to maintain the preparedness of the Task Force under this Readiness Cooperative Agreement, in order to provide critical emergency response services as one of the 28 teams for the National Urban Search and Rescue Response System.  The below list of costs covers what is anticipated for this Readiness Cooperative Agreement.   Except for minor renovations and modifications of existing warehouse facilities that do not change the footprint of the structure, construction and renovation costs are not allowed.  Examples of permissible minor renovation and modification costs include but are not limited to office/storage space buildout/reconfiguration, ceilings, loading docks/doors, lighting, HVAC, and security fencing.   The National US&R Branch approval is required for reimbursement of renovation and modification costs. "]
[{"$nulls":20},"Cache List"]
[{"$nulls":20},"Communications"]
[{"$nulls":20},"Haz Mat/WMD"]
[{"$nulls":20},"Logistics"]
["Total Storage & Maintenance Cost",{"$nulls":19},"Medical"]
[{"$f":"SUM(G41,E101,F152,E195,G241,E274,F309)","v":{"v":0,"d":"$0"}},{"$nulls":19},"Planning"]
[{"$nulls":20},"Rescue"]
["Personnel Salaries & Fringe Benefits",{"$nulls":19},"Technical "]
[{"$nulls":20},"Water "]
["Notes for Personnel Salaries and Fringe Benefits Section",{"$nulls":19},"N/A"]
["The Task Force can use this category to account for the salaries of Task Force Members who perform duties related to storage & maintenance.   This may also include backfill expenses for individual(s) who are working with related projects.  If specific costs are unknown, give estimated salary hours and average salary rate.  If specific dates are unknown, provide estimated time frame (e.g., 1 day per week/month, etc.).  If overtime hours are listed, please note them as a separate line item below.   Put the total amount under salary.  Note the hourly rate in the clarification box"]
[]
[]
[]
[]
["Personnel Salaries and Fringe Benefits"]
["Staff Position","Full/Part Time","Overtime Hours","Date Salary Charged ","Fringe Benefits (If Applicable)","Salary","Totals"]
[{"$nulls":6},{"$f":"SUM(E26:F26)","v":{"v":0,"d":"$0"}}]
[{"$nulls":6},{"v":0,"d":"$0"}]
[{"$nulls":6},{"v":0,"d":"$0"}]
[{"$nulls":6},{"v":0,"d":"$0"}]
[{"$nulls":6},{"v":0,"d":"$0"}]
[{"$nulls":6},{"v":0,"d":"$0"}]
[{"$nulls":6},{"v":0,"d":"$0"}]
[{"$nulls":6},{"$f":"SUM(E33:F33)","v":{"v":0,"d":"$0"}}]
[{"$nulls":6},{"v":0,"d":"$0"}]
[{"$nulls":6},{"v":0,"d":"$0"}]
[{"$nulls":6},{"v":0,"d":"$0"}]
[{"$nulls":6},{"v":0,"d":"$0"}]
[{"$nulls":6},{"v":0,"d":"$0"}]
[{"$nulls":6},{"v":0,"d":"$0"}]
[{"$nulls":6},{"v":0,"d":"$0"}]
["Totals",{"$nulls":3},{"$f":"SUM(E26:E40)","v":{"v":0,"d":"$0"}},{"$f":"ROUND(SUM(F26:F40),0)","v":{"v":0,"d":"$0"}},{"$f":"SUM(G26:G40)","v":{"v":0,"d":"$0"}}]
[]
["Personnel Salaries",null,null,"Cost Basis: ","Please mark appropriate box(es) below. "]
["The area below is to provide additional notes the Task Force may need to add for clarifying the range of salary rates used to develop the average hourly costs."]
[{"$nulls":4},"Union Agreements"]
[]
[{"$nulls":4},"City/County/Organization Negotiated Agreements"]
[]
[{"$nulls":4},"Historical Data"]
[]
[{"$nulls":4},"Bids/Quotes"]
[]
[{"$nulls":4},"Costs are in Comparison w/ other TFs for Similar Tasks or Items"]
[]
[{"$nulls":4},"Other ","(List here): "]
["This narrative box has character limitations.  For additional clarification use tab 12"]
[]
[]
["Fringe Benefits",null,null,"Cost Basis: ","Please mark appropriate box(es) below. "]
["The area below is to state the total percentage (e.g., 23%) for the Fringe Benefits (if applicable) and list the items (e.g., health, dental, workers' comp) that are included. "]
[{"$nulls":4},"Union Agreements"]
[]
[{"$nulls":4},"City/County/Organization Negotiated Agreements"]
[]
[{"$nulls":4},"Historical Data"]
[]
[{"$nulls":4},"Bids/Quotes"]
[]
[{"$nulls":4},"Costs are in Comparison w/ other TFs for Similar Tasks or Items"]
[]
[{"$nulls":4},"Other","(List here): "]
[]
["This narrative box has character limitations.  For additional clarification use tab 12"]
[]
["Travel"]
[]
["Notes for Travel Section"]
["This section can be used for those travel items related to storage, maintenance and/or equipment (e.g., mileage, etc.)  allowable within the scope of the Statement of Work.  Please note: These expenses can be reflected within the Administrative/Management travel category instead.  Costs can be provided in detail or by trip costs, and a detail of the costs should be listed in the comments sections, that will show how you arrived at the trip total.  The costs listed below are estimates due to travel locations that are unknown at the time of application.  It is at this time when costs are generally based on historical data. There are drop down menus for some of the meetings, and you can add others that are in line within the Statement of Work.  "]
[]
[]
[]
[]
[]
["Travel (If Applicable)"]
["Event Title","No. of Personnel","Cost Per Person","Number of Trips","Total Cost"]
[{"$nulls":4},{"$f":"B86*C86*D86","v":{"v":0,"d":"$0"}}]
[{"$nulls":4},{"$f":"B87*C87*D87","v":{"v":0,"d":"$0"}}]
[{"$nulls":4},{"v":0,"d":"$0"}]
[{"$nulls":4},{"v":0,"d":"$0"}]
[{"$nulls":4},{"v":0,"d":"$0"}]
[{"$nulls":4},{"v":0,"d":"$0"}]
[{"$nulls":4},{"v":0,"d":"$0"}]
[{"$nulls":4},{"v":0,"d":"$0"}]
[{"$nulls":4},{"v":0,"d":"$0"}]
["If other, list here",{"$nulls":3},{"v":0,"d":"$0"}]
["If other, list here",{"$nulls":3},{"v":0,"d":"$0"}]
["If other, list here",{"$nulls":3},{"v":0,"d":"$0"}]
["If other, list here",{"$nulls":3},{"v":0,"d":"$0"}]
["If other, list here",{"$nulls":3},{"v":0,"d":"$0"}]
["If other, list here",{"$nulls":3},{"v":0,"d":"$0"}]
["Total",{"$nulls":3},{"$f":"SUM(E86:E100)","v":{"v":0,"d":"$0"}}]
[]
["Travel",null,null,"Cost Basis: ","Please mark appropriate box(es) below. "]
["Briefly describe breakdown of travel Cost Per Person.  Provide examples of \"other authorized travel\" if selected above."]
[{"$nulls":4},"Union Agreements"]
[]
[{"$nulls":4},"City/County/Organization Negotiated Agreements"]
[]
[{"$nulls":4},"Historical Data"]
[]
[{"$nulls":4},"Bids/Quotes"]
[]
[{"$nulls":4},"Costs are in Comparison w/ other TFs for Similar Tasks or Items"]
[]
[{"$nulls":4},"Other ","(List here): "]
["This narrative box has character limitations.  For additional clarification use tab 12"]
[]
[]
["Equipment"]
[]
["Notes for Equipment Section"]
["This section may be used to reflect expenses related purchasing, maintenance and repair of equipment and vehicles, as approved by DHS/FEMA and within the scope of the Statement of Work.  Your Task Force is authorized to purchase equipment as listed in the approved DHS/FEMA 2017 US&R Task Force Equipment Cache List, or any subsequently approved DHS/FEMA US&R Equipment list.  Task Force personnel are reminded and directed not to exceed quantity and/or cost caps as listed on the cache list.  Task Force must follow department procurement regulations, which are in accordance with 2 CFR Part 200 to ensure reasonable prices are obtained.  The US&R Branch and the Grants Office Assistance Officer must provide written approval for any other equipment not identified on approved cache list(s).  Those Task Forces who maintain an IST Medical Cache are to include the appropriate amount below for replacement of equipment and pharmaceuticals.  Please note: These expenses can be reflected within the Equipment category instead. "]
[]
[]
[]
[]
[]
[]
["Equipment"]
["Item Description","Item #","Cache #","Unit Cost","No. of Units","Total Cost"]
[{"$nulls":5},{"$f":"D131*E131","v":{"v":0,"d":"$0"}}]
[{"$nulls":5},{"$f":"D132*E132","v":{"v":0,"d":"$0"}}]
[{"$nulls":5},{"v":0,"d":"$0"}]
[{"$nulls":5},{"v":0,"d":"$0"}]
[{"$nulls":5},{"v":0,"d":"$0"}]
[{"$nulls":5},{"v":0,"d":"$0"}]
[{"$nulls":5},{"v":0,"d":"$0"}]
[{"$nulls":5},{"v":0,"d":"$0"}]
[{"$nulls":5},{"v":0,"d":"$0"}]
[{"$nulls":5},{"v":0,"d":"$0"}]
[{"$nulls":5},{"v":0,"d":"$0"}]
[{"$nulls":5},{"v":0,"d":"$0"}]
[{"$nulls":5},{"v":0,"d":"$0"}]
[{"$nulls":5},{"v":0,"d":"$0"}]
[{"$nulls":5},{"v":0,"d":"$0"}]
[{"$nulls":5},{"v":0,"d":"$0"}]
[{"$nulls":5},{"v":0,"d":"$0"}]
[{"$nulls":5},{"v":0,"d":"$0"}]
[{"$nulls":5},{"v":0,"d":"$0"}]
[{"$nulls":5},{"v":0,"d":"$0"}]
[{"$nulls":5},{"v":0,"d":"$0"}]
["Total",{"$nulls":4},{"$f":"SUM(F131:F151)","v":{"v":0,"d":"$0"}}]
[]
["Equipment",null,null,"Cost Basis: ","Please mark appropriate box(es) below. "]
["Describe any additional supporting information for equipment costs below."]
[{"$nulls":4},"Union Agreements"]
[]
[{"$nulls":4},"City/County/Organization Negotiated Agreements"]
[]
[{"$nulls":4},"Historical Data"]
[]
[{"$nulls":4},"Bids/Quotes"]
[]
[{"$nulls":4},"Costs are in Comparison w/ other TFs for Similar Tasks or Items"]
[]
[{"$nulls":4},"Other ","(List here): "]
["This narrative box has character limitations.  For additional clarification use tab 12"]
[]
[]
["Supplies"]
[]
["Notes for Supplies Section"]
["In the area below, provide an approximate listing of necessary supplies.  Supply items/costs that should be listed are items other then what the equipment definition states as follows:  The general definition of ‘‘Equipment’’ out of the CFR is:  \"Equipment\"  means an article of nonexpendable, tangible personal property having a useful life of more than one year and an acquisition cost which equals or exceeds the lesser of the capitalization level established by the governmental unit for financial statement purposes, or $5000."]
[]
[]
[]
[]
["Supplies "]
["Item","Cache #","Unit Cost","No. of Units","Total cost"]
[{"$nulls":4},{"$f":"C180*D180","v":{"v":0,"d":"$0"}}]
[{"$nulls":4},{"v":0,"d":"$0"}]
[{"$nulls":4},{"v":0,"d":"$0"}]
[{"$nulls":4},{"v":0,"d":"$0"}]
[{"$nulls":4},{"v":0,"d":"$0"}]
[{"$nulls":4},{"v":0,"d":"$0"}]
[{"$nulls":4},{"v":0,"d":"$0"}]
[{"$nulls":4},{"v":0,"d":"$0"}]
[{"$nulls":4},{"v":0,"d":"$0"}]
[{"$nulls":4},{"v":0,"d":"$0"}]
[{"$nulls":4},{"v":0,"d":"$0"}]
[{"$nulls":4},{"v":0,"d":"$0"}]
[{"$nulls":4},{"v":0,"d":"$0"}]
[{"$nulls":4},{"v":0,"d":"$0"}]
[{"$nulls":4},{"v":0,"d":"$0"}]
["Total",{"$nulls":3},{"$f":"SUM(E180:E194)","v":{"v":0,"d":"$0"}}]
[]
["Supplies",null,null,"Cost Basis: ","Please mark appropriate box(es) below. "]
["Describe any additional supporting information for supply costs below."]
[{"$nulls":4},"Union Agreements"]
[]
[{"$nulls":4},"City/County/Organization Negotiated Agreements"]
[]
[{"$nulls":4},"Historical Data"]
[]
[{"$nulls":4},"Bids/Quotes"]
[]
[{"$nulls":4},"Costs are in Comparison w/ other TFs for Similar Tasks or Items"]
[]
["This narrative box has character limitations.  For additional clarification use tab 12",{"$nulls":3},"Other ","(List here): "]
[]
[]
[]
["Contractual"]
[]
["Notes for Contractual Section"]
["In the area below, list any supporting information for the contractual costs of services, rentals, etc., as it pertains to the maintenance and/or lease of storage facilities and associated US&R equipment and supplies.   Under the quantity for leases please include the square footage of the warehouse. Task force management is reminded you may only use cooperative agreement funds to pay for warehouse leases for a twelve-month consecutive period within the overall period of performance and that there is no guarantee of cooperative agreement funding in future years (See Statement of Work, Section F, Cooperative Agreement Funding at pages 21-22).  Task forces may write contracts with an available fund’s clause or option years for protection. "]
[]
[]
[]
[]
[]
["Contractual"]
["Service","Prior Coverage Dates","Lease Begin Date","Lease End Date","Quantity","Unit Cost","Total Cost"]
[{"$nulls":6},{"$f":"SUM(E224*F224)","v":{"v":0,"d":"$0"}}]
[{"$nulls":6},{"$f":"SUM(E225*F225)","v":{"v":0,"d":"$0"}}]
[{"$nulls":6},{"v":0,"d":"$0"}]
[{"$nulls":6},{"v":0,"d":"$0"}]
[{"$nulls":6},{"v":0,"d":"$0"}]
[{"$nulls":6},{"v":0,"d":"$0"}]
[{"$nulls":6},{"v":0,"d":"$0"}]
[{"$nulls":6},{"$f":"SUM(E231*F231)","v":{"v":0,"d":"$0"}}]
[{"$nulls":6},{"v":0,"d":"$0"}]
[{"$nulls":6},{"v":0,"d":"$0"}]
[{"$nulls":6},{"v":0,"d":"$0"}]
[{"$nulls":6},{"v":0,"d":"$0"}]
[{"$nulls":6},{"v":0,"d":"$0"}]
[{"$nulls":6},{"v":0,"d":"$0"}]
[{"$nulls":6},{"v":0,"d":"$0"}]
[{"$nulls":6},{"v":0,"d":"$0"}]
[{"$nulls":6},{"v":0,"d":"$0"}]
["Total",{"$nulls":5},{"$f":"SUM(G224:G240)","v":{"v":0,"d":"$0"}}]
[]
["Contractual",null,null,"Cost Basis: ","Please mark appropriate box(es) below. "]
["Describe any additional supporting information for contractual costs below.  Include square footage and cost per for any facility leases included above."]
[{"$nulls":4},"Union Agreements"]
[]
[{"$nulls":4},"City/County/Organization Negotiated Agreements"]
[]
[{"$nulls":4},"Historical Data"]
[]
[{"$nulls":4},"Bids/Quotes"]
[]
[{"$nulls":4},"Costs are in Comparison w/ other TFs for Similar Tasks or Items"]
[]
[{"$nulls":4},"Other ","(List here): "]
["This narrative box has character limitations.  For additional clarification use tab 12"]
[]
[]
["Other"]
[]
["Notes for Other Section"]
["This area will cover any miscellaneous items that are are storage & maintenance-related and allowable under the Statement of Work but not covered in the other object classes. Except for minor renovations and modifications of existing warehouse facilities that do not change the footprint of the structure, construction and renovation costs are not allowed.  Examples of permissible minor renovation and modification costs include but are not limited to office/storage space build-out/reconfiguration, ceilings, loading docks/doors, lighting, HVAC, and security fencing.  US&R Branch approval is required for reimbursement of renovation and modification costs. "]
[]
[]
[]
["Other (List minor renovation/modification costs here)"]
["Item",null,"Quantity","Unit Cost","Total Cost"]
[{"$nulls":4},{"$f":"SUM(C268*D268)","v":{"v":0,"d":"$0"}}]
[{"$nulls":4},{"v":0,"d":"$0"}]
[{"$nulls":4},{"v":0,"d":"$0"}]
[{"$nulls":4},{"v":0,"d":"$0"}]
[{"$nulls":4},{"v":0,"d":"$0"}]
[{"$nulls":4},{"v":0,"d":"$0"}]
["Total",{"$nulls":3},{"$f":"SUM(E268:E273)","v":{"v":0,"d":"$0.00"}}]
[]
["Other",null,null,"Cost Basis: ","Please mark appropriate box(es) below. "]
["Describe any additional supporting information for other costs below."]
[{"$nulls":4},"Union Agreements"]
[]
[{"$nulls":4},"City/County/Organization Negotiated Agreements"]
[]
[{"$nulls":4},"Historical Data"]
[]
[{"$nulls":4},"Bids/Quotes"]
[]
[{"$nulls":4},"Costs are in Comparison w/ other TFs for Similar Tasks or Items"]
[]
[{"$nulls":4},"Other ","(List here): "]
["This narrative box has character limitations.  For additional clarification use tab 12"]
[]
[]
[]
["Indirect Costs"]
[]
["Notes for Indirect Costs Section"]
["Indirect Costs can only be provided if there is an Indirect Cost Rate Agreement that has been approved by a cognizant Federal Agency.  A copy of the Indirect Cost Rate Agreement should accompany  the application.   The Indirect Cost Rate Agreement that you provide should state what category or categories  the Indirect Costs are based on, ie equipment, salaries, all expenses,  etc.   The information provided below should list the description of the cost category for the base, the amount on which it's based, the percentage, and the total.  The rate or amount approved at time of award will prevail thru the term of the Cooperative Agreement."]
[]
[]
[]
[]
["Indirect Costs "]
["Item/Category","Item Description",null,"Base Amount","Percentage","Total Cost"]
[]
[]
[]
[]
[]
[]
["Total",{"$nulls":4},{"$f":"SUM(F303:F308)","v":{"v":0,"d":"$0"}}]
[]
["Indirect Costs",null,null,"Cost Basis: ","Please mark appropriate box(es) below. "]
["Describe any additional supporting information for indirect costs below.  Please advise who is the Cognizant Federal Agency and the date of approval."]
[{"$nulls":4},"Union Agreements"]
[]
[{"$nulls":4},"City/County/Organization Negotiated Agreements"]
[]
[{"$nulls":4},"Historical Data"]
[]
[{"$nulls":4},"Bids/Quotes"]
[]
[{"$nulls":4},"Costs are in Comparison w/ other TFs for Similar Tasks or Items"]
[]
[{"$nulls":4},"Other","(List here): "]
[]
["This narrative box has character limitations.  For additional clarification use tab 12"]

{"sheet":"10-Budget Totals","index":10,"n_rows":25,"n_cols":4,"rows_kept":25,"merged":[[0,0,0,6],[1,0,1,6],[2,0,2,5]]}
["BUDGET TOTALS"]
["FEMA Form 089-0-10G"]
["This summary will be populated based on figures entered into other sections of this narrative."]
[]
[]
[null,null,"Activity","Cost"]
[null,null,"Administration & Management",{"$f":"'6-Administration & Management'!A13","v":{"v":0,"d":"$0.00"}}]
[null,null,"Training",{"$f":"'7-Training'!A17","v":{"v":0,"d":"$0.00"}}]
[null,null,"Equipment",{"$f":"'8-Equipment'!A16","v":{"v":0,"d":"$0.00"}}]
[null,null,"Storage & Maintenance ",{"$f":"'9-Storage & Maintenance'!A14","v":{"v":0,"d":"$0.00"}}]
[null,null,"Object Class","Cost"]
[null,null,"Personnel",{"$f":"'6-Administration & Management'!H46+'7-Training'!G46+'8-Equipment'!F43+'9-Storage & Maintenance'!F41","v":{"v":0,"d":"$0.00"}}]
[null,null,"Fringe Benefits",{"$f":"'6-Administration & Management'!G46+'7-Training'!F46+'8-Equipment'!E43+'9-Storage & Maintenance'!E41","v":{"v":0,"d":"$0.00"}}]
[null,null,"Travel",{"$f":"'6-Administration & Management'!E113+'7-Training'!D114+'8-Equipment'!E103+'9-Storage & Maintenance'!E101","v":{"v":0,"d":"$0.00"}}]
[null,null,"Equipment",{"$f":"'6-Administration & Management'!E162+'7-Training'!F166+'8-Equipment'!F158+'9-Storage & Maintenance'!F152","v":{"v":0,"d":"$0.00"}}]
[null,null,"Supplies",{"$f":"'6-Administration & Management'!E206+'7-Training'!E210+'8-Equipment'!E204+'9-Storage & Maintenance'!E195","v":{"v":0,"d":"$0.00"}}]
[null,null,"Contractual",{"$f":"'6-Administration & Management'!E249+'7-Training'!E254+'8-Equipment'!E247+'9-Storage & Maintenance'!G241","v":{"v":0,"d":"$0.00"}}]
[null,null,"Other",{"$f":"'6-Administration & Management'!E280+'7-Training'!E286+'8-Equipment'!E279+'9-Storage & Maintenance'!E274","v":{"v":0,"d":"$0.00"}}]
[null,null,"Indirect Charges",{"$f":"'6-Administration & Management'!F314+'7-Training'!F320+'8-Equipment'!F313+'9-Storage & Maintenance'!F309","v":{"v":0,"d":"$0.00"}}]
[]
[null,null,"Activity Sum",{"$f":"SUM(D7:D10)","v":{"v":0,"d":"$0.00"}}]
[]
[null,null,"Object Class Sum",{"$f":"SUM(D12:D19)","v":{"v":0,"d":"$0.00"}}]
[]
[null,null,"Total",{"$f":"SUM(D21)","v":{"v":0,"d":"$0.00"}}]

{"sheet":"11-Position Descrips","index":11,"n_rows":110,"n_cols":7,"rows_kept":110,"merged":[[0,0,0,8],[1,0,1,8],[2,0,2,8],[4,1,4,3],[4,6,4,8],[6,0,22,3],[6,5,22,8],[24,1,24,3],[24,6,24,8],[26,0,42,3],[26,5,42,8],[44,1,44,3],[44,6,44,8],[46,0,62,3],[46,5,62,8],[68,1,68,3],[68,6,68,8],[70,0,86,3],[70,5,86,8],[90,0,106,3],[90,5,106,8],[110,0,126,3],[110,5,126,8]]}
["POSITION DESCRIPTIONS"]
["FEMA Form 089-0-10H"]
["Please fill in position descriptions below, or attach pre-typed descriptions. "]
[]
["1. Administrative Specialist:","Name",{"$nulls":3},"4. Logistics Coordinator: ","Name"]
["Describe Administrative Specialist functions here.",{"$nulls":4},"Describe Logistics Coordinator functions here."]
{"$rows_empty":18}
["2. Financial Grants Manager:  ","Name",{"$nulls":3},"5. Logistics Manager:","Name"]
["Describe Financial Grants Manager functions here.",{"$nulls":4},"Describe Logistics Manager functions here."]
{"$rows_empty":18}
["3. Grant Manager: ","Name",{"$nulls":3},"6. Program Manager: ","Name"]
["Describe Grant Manager functions here.",{"$nulls":4},"Describe Program Manager functions here."]
{"$rows_empty":22}
["7. Training Coordinator: ","Name",{"$nulls":3},"8. Training Manager: ","Name"]
["Describe Describe Training Coordinator functions here.",{"$nulls":4},"Describe Training Manager functions here."]
{"$rows_empty":18}
["Other (Please list position and name)",{"$nulls":4},"Other (Please list position and name)"]
["Describe position functions here. ",{"$nulls":4},"Describe position functions here. "]
{"$rows_empty":18}
["Other (Please list position and name)",{"$nulls":4},"Other (Please list position and name)"]
["Describe position functions here. ",{"$nulls":4},"Describe position functions here. "]

{"sheet":"12-Budget Clarification","index":12,"n_rows":290,"n_cols":6,"rows_kept":290,"merged":[[0,0,0,8],[1,0,1,8],[3,5,3,8],[4,0,4,3],[4,5,4,8],[5,0,17,3],[5,5,17,8],[18,0,18,3],[18,5,18,8],[19,0,31,3],[19,5,31,8],[32,0,32,3],[32,5,32,8],[33,0,45,3],[33,5,45,8],[47,0,47,3],[47,5,47,8],[48,0,48,3],[48,5,48,8],[49,0,61,3],[49,5,61,8],[62,0,62,3],[62,5,62,8],[63,0,75,3],[63,5,75,8],[78,0,78,3],[78,5,78,8],[79,0,91,3],[79,5,91,8],[92,0,92,3],[92,5,92,8],[93,0,105,3],[93,5,105,8],[106,0,106,3],[106,5,106,8],[107,0,119,3],[107,5,119,8],[124,0,124,3],[124,5,124,8],[125,0,137,3],[125,5,137,8],[138,0,138,3],[138,5,138,8],[139,0,151,3],[139,5,151,8],[154,0,154,3],[154,5,154,8],[155,0,167,3],[155,5,167,8],[168,0,168,3],[168,5,168,8],[169,0,181,3],[169,5,181,8],[182,0,182,3],[182,5,182,8],[183,0,195,3],[183,5,195,8],[199,0,199,3],[199,5,199,8],[200,0,212,3],[200,5,212,8],[213,0,213,3],[213,5,213,8],[214,0,226,3],[214,5,226,8],[230,5,230,8],[231,0,231,3],[231,5,231,8],[232,0,244,3],[232,5,244,8],[245,0,245,3],[245,5,245,8],[246,0,258,3],[246,5,258,8],[259,0,259,3],[259,5,259,8],[260,0,272,3],[260,5,272,8],[275,0,275,3],[275,5,275,8],[276,0,288,3],[276,5,288,8],[289,0,289,3],[289,5,289,8],[290,0,301,3],[290,5,301,8],[302,0,302,3],[302,5,302,8]]}
["BUDGET CLARIFICATION "]
["FEMA Form 089-0-10I "]
["Please use the blocks below if additional space is needed to clarify other sections of the narrative"]
["ADMINISTRATIVE/MANAGEMENT ",{"$nulls":4},"ADMINISTRATIVE/MANAGEMENT"]
["Personnel Salaries:",{"$nulls":4},"Equipment:"]
{"$rows_empty":13}
["Fringe Benefits:",{"$nulls":4},"Supplies:"]
{"$rows_empty":13}
["Travel:",{"$nulls":4},"Contractual:"]
{"$rows_empty":14}
["ADMINISTRATIVE/MANAGEMENT",{"$nulls":4},"ADMINSTRATIVE/MANAGEMENT"]
["Other:"]
{"$rows_empty":13}
["Direct Charges"]
{"$rows_empty":14}
["TRAINING",{"$nulls":4},"TRAINING"]
["Personnel Salaries:",{"$nulls":4},"Equipment:"]
{"$rows_empty":13}
["Fringe Benefits:",{"$nulls":4},"Supplies:"]
{"$rows_empty":13}
["Travel:",{"$nulls":4},"Contractual:"]
{"$rows_empty":16}
["TRAINING",{"$nulls":4},"TRAINING"]
["Other:"]
{"$rows_empty":13}
["Direct Charges"]
{"$rows_empty":14}
["EQUIPMENT",{"$nulls":4},"EQUIPMENT"]
["Personnel Salaries:",{"$nulls":4},"Equipment:"]
{"$rows_empty":13}
["Fringe Benefits:",{"$nulls":4},"Supplies:"]
{"$rows_empty":13}
["Travel:",{"$nulls":4},"Contractual:"]
{"$rows_empty":15}
["EQUIPMENT",{"$nulls":4},"EQUIPMENT"]
["Other:"]
{"$rows_empty":13}
["Direct Charges"]
{"$rows_empty":16}
["STORAGE & MAINTENANCE",{"$nulls":4},"STORAGE & MAINTENANCE"]
["Personnel Salaries:",{"$nulls":4},"Equipment:"]
{"$rows_empty":13}
["Fringe Benefits:",{"$nulls":4},"Supplies:"]
{"$rows_empty":13}
["Travel:",{"$nulls":4},"Contractual:"]
{"$rows_empty":14}
["STORAGE & MAINTENANCE",{"$nulls":4},"STORAGE & MAINTENANCE"]
["Other:"]
{"$rows_empty":13}
["Direct Charges"]